{"text_format":"1","workbook":"xlsx","n_sheets":13,"sheets":["Инструкция","Титульный","списки","данные об организации","Техн характер системы","полезный отпуск","отчет по реализации","Смета факт","форма №2","показатели надежн и качества","отчет ПП","расчет выпадающих","ЭЗ"],"not_rendered":{"charts":0,"images":1,"macros":1,"external_links":1,"defined_names":95,"comments":0,"pivot_tables":0},"unopened":[],"bounds":{"document_bytes":16777216,"sheet_cells":100000,"rows_first":2000,"rows_last":500,"rows_between":2000,"halvings":0,"cell_chars":16384,"cell_head_chars":4096},"cells_cut":0,"cells_raw":0,"read":"whole","date_system":"1900"}

{"sheet":"Инструкция","index":0,"n_rows":151,"n_cols":1,"rows_kept":151,"cut":false,"hidden":false,"merged":[]}
[]
[]
[]
[]
[]
[]
[]
[]
[]
[]
[]
[]
[]
[]
[]
[]
[]
[]
[]
[]
[]
[]
[]
[]
[]
[]
[]
[]
[]
[]
[]
[]
[]
[]
[]
[]
[]
[]
[]
[]
[]
[]
[]
[]
[]
[]
[]
[]
[]
[]
[]
[]
[]
[]
[]
[]
[]
[]
[]
[]
[]
[]
[]
[]
[]
[]
[]
[]
[]
[]
[]
[]
[]
[]
[]
[]
[]
[]
[]
[]
[]
[]
[]
[]
[]
[]
[]
[]
[]
[]
[]
[]
[]
[]
[]
[]
[]
[]
[]
[]
[]
[]
[]
[]
[]
[]
[]
[]
[]
[]
[]
[]
[]
[]
[]
[]
[]
[]
[]
[]
[]
[]
[]
[]
[]
[]
[]
[]
[]
[]
[]
[]
[]
[]
[]
[]
[]
[]
[]
[]
[]
[]
[]
[]
[]
[]
[]
[]
[]
["18dtrTO"]
["18dtrTO18"]

{"sheet":"Титульный","index":1,"n_rows":23,"n_cols":3,"rows_kept":23,"cut":false,"hidden":false,"merged":[]}
[]
[null,null,"ОТЧЕТ О ВЫПОЛНЕНИИ ПРОИЗВОДСТВЕННОЙ ПРОГРАММЫ"]
[]
[null,"Регион РФ","Томская область"]
[]
[null,"Муниципальный район "]
[null,"Муниципальное образование "]
[]
[null,"ИНН "]
[null,"Наименование  организации",{"$f":"IF(Титульный!C9=\"\",\" \",INDEX(списки!M2:O185,MATCH(Титульный!C9,списки!M2:M185,0),3))","v":" "}]
[null,"Наименование филиала"]
[]
[null,"КПП ",{"$f":"IF(Титульный!C9=\"\",\" \",INDEX(списки!M2:O185,MATCH(Титульный!C9,списки!M2:M185,0),2))","v":" "}]
[]
[null,"Вид деятельности","Водоснабжение"]
[]
[null,"период отчета","2017"]
[]
[null,"Вид  тарифа ","горячее водоснабжение"]
[]
[null,"Наименование и адрес котельной (группы котельных)"]
[]
[null,"Система налогообложения","Общая"]

{"sheet":"списки","index":2,"n_rows":185,"n_cols":16,"rows_kept":185,"cut":false,"hidden":true,"merged":[]}
["Районы",null,"Муниципальные образования",null,"Год",null,"Выбор","Вид тарифа","Система налогообложения",null,null,null,"ИНН","КПП","Наименование организации","Имущество"]
[null,null,null,null,null,null,null,null,null,null,1,2,"5116000922","540645001","акционерное общество \"Главное управление жилищно-коммунального хозяйства\"","договор аренды"]
["Александровский",null,"Александровское",null,2011,null,"да","питьевая вода","Общая",1,"прибыль","доходы","7002006723","701701001","муниципальное бюджетное учреждение здравоохранения \"Асиновская центральная районная больница\"","постановление"]
["Асиновский",null,"Анастасьевское",null,2012,null,"нет","питьевая вода (с дополнительной очисткой)","Упрощенная",2,null,"доходы минус расходы","7002010695","700201001","муниципальное унитарное предприятие \"Спецавтохозяйство\"","акт приема-передачи"]
["Бакчарский",null,"Асиновское городское",null,2013,null,null,"техническая вода",null,null,null,null,"7002011508","700201001","муниципальное унитарное предприятие \"Большедороховское жилищно-коммунальное хозяйство\"","иное"]
["Верхнекетский",null,"Базойское",null,2014,null,null,"транспортировка воды",null,null,null,null,"7002011515","700201001","муниципальное унитарное предприятие \"Новокусковское жилищно-коммунальное хозяйство\""]
["г. Кедровый",null,"Бакчарское",null,2015,null,null,"очистка воды",null,null,null,null,"7002011522","700201001","муниципальное унитарное предприятие \"Новиковское жилищно-коммунальное хозяйство\""]
["г. Северск",null,"Баткатское",null,2016,null,null,"подвоз воды",null,null,null,null,"7002011530","700201001","муниципальное унитарное предприятие \"Батуринское жилищно-коммунальное хозяйство\""]
["г. Стрежевой",null,"Батуринское",null,2017,null,null,null,null,null,null,null,"7002011547","700201001","муниципальноте унитарное предприятие \"Ягодное жилищно-коммунальное хозяйство\""]
["г. Томск",null,"Белоярское",null,2018,null,null,null,null,null,null,null,"7002011787","700201001","муниципальное унитарное предприятие \"Новониколаевское жилищно-коммунальное хозяйство\""]
["Зырянский",null,"Белоярское городское",null,2019,null,null,null,null,null,null,null,"7002016312","700201001","общество с ограниченной ответственностью \"Асиновская водяная компания\""]
["Каргасокский",null,"Берегаевское",null,2020,null,null,null,null,null,null,null,"7002016626","700201001","общество с ограниченной ответственностью \"Асиновская тепло-генерирующая компания-№1\""]
["Кожевниковский",null,"Богатыревское",null,null,null,null,null,null,null,null,null,"7002016954","700201001","муниципальное унитарное предприятие \"Новокусковские коммунальные системы\""]
["Колпашевский",null,"Богашевское",null,null,null,null,null,null,null,null,null,"7002017027","700201001","общество с ограниченной ответсвенностью \"Асиновский водоканал\""]
["Кривошеинский",null,"Большедороховское",null,null,null,null,null,null,null,null,null,"7002017059","700201001","общество с ограниченной ответственностью \"АКОС\""]
["Молчановский",null,"Вавиловское",null,null,null,null,null,null,null,null,null,"7002017186","700201001","общество с ограниченной ответственностью \"Теплоэнергоресурс №1\""]
["Парабельский",null,"Вертикосское",null,null,null,null,null,null,null,null,null,"7002017193","700201001","общество с ограниченной ответственностью \"Теплоэнергоресурс №2\""]
["Первомайский",null,"Володинское",null,null,null,null,null,null,null,null,null,"7002017203","700201001","общество с ограниченной ответственностью \"Теплоэнергоресурс №3\""]
["Тегульдетский",null,"Воронинское",null,null,null,null,null,null,null,null,null,"7002017210","700201001","общество с ограниченной ответственностью \"Теплоэнергоресурс №4\""]
["Томский",null,"Высоковское",null,null,null,null,null,null,null,null,null,"7003000227","700301001","муниципальное унитарное предприятие Бакчарского района \"Бакчарский коммунальный комплекс\""]
["Чаинский",null,"Высокоярское",null,null,null,null,null,null,null,null,null,"7003000273","700301001","областное государственное бюджетное образовательное учреждение начального профессионального образования \"Профессиональное училище № 35\""]
["Шегарский",null,"Галкинское",null,null,null,null,null,null,null,null,null,"7003003130","700301001","открытое акционерное общество \"Агропромышленная компания \"Галкинская\""]
[null,null,"г. Кедровый",null,null,null,null,null,null,null,null,null,"7004004746","700401001","общество с ограниченной ответственностью \"Гранит\""]
[null,null,"городской округ \"ЗАТО Северск\"",null,null,null,null,null,null,null,null,null,"7004005323","700401001","общество с ограниченной ответственностью \"БИО ТЭК Верхняя Кеть\""]
[null,null,"городской округ \"Город Стрежевой\"",null,null,null,null,null,null,null,null,null,"7004006052","700401001","общество с ограниченной ответственностью \"БИО ТЭК-С\""]
[null,null,"городской округ \"Город  Томск\"",null,null,null,null,null,null,null,null,null,"700400687080","отсутствует","индивидуальный предприниматель Ковыряхин Юрий Анатольевич"]
[null,null,"Колпашевское городское поселение",null,null,null,null,null,null,null,null,null,"7004007151","700401001","общество с ограниченной ответственностью \"Деметра\""]
[null,null,"Дальненское",null,null,null,null,null,null,null,null,null,"7004007200","700401001","общество с ограниченной ответственностью \"Сайга-Энерго\""]
[null,null,"Дубровское",null,null,null,null,null,null,null,null,null,"7004007240","700401001","общество с ограниченной ответственностью \"Коммунально-жилищный сервис Ягодное\""]
[null,null,"Заводское",null,null,null,null,null,null,null,null,null,"7004007610","700401001","муниципальное унитарное предприятие Степановского сельского поселения \"Степановское\""]
[null,null,"Заречное",null,null,null,null,null,null,null,null,null,"7004007708","700401001","общество с ограниченной ответственностью \"Орловка\""]
[null,null,"Зональненское",null,null,null,null,null,null,null,null,null,"700500339834","отсутствует","индивидуальный предприниматель Маслов Сергей Афанасьевич"]
[null,null,"Зоркальцевское",null,null,null,null,null,null,null,null,null,"7005006305","700501001","муниципальное учреждение - Администрация Чердатского сельского поселения"]
[null,null,"Зырянское",null,null,null,null,null,null,null,null,null,"7005006312","700501001","муниципальное учреждение - Администрация Высоковского сельского поселения"]
[null,null,"Инкинское",null,null,null,null,null,null,null,null,null,"7005006344","700501001","муниципальное учреждение - Администрация Дубровского сельского поселения"]
[null,null,"Итатское",null,null,null,null,null,null,null,null,null,"7005006560","700501001","Михайловское муниципальное унитарное предприятие \"Родник\""]
[null,null,"Иштанское",null,null,null,null,null,null,null,null,null,"7005007193","700501001","общество с ограниченной ответственностью \"Аква-Сервис\""]
[null,null,"Калтайское",null,null,null,null,null,null,null,null,null,"7005007203","700501001","общество с ограниченной ответственностью \"Эко-Транс\""]
[null,null,"Каргасокское",null,null,null,null,null,null,null,null,null,"7005015638","700501001","общество с ограниченной ответственностью \"КомСервис Тегульдет\""]
[null,null,"Катайгинское",null,null,null,null,null,null,null,null,null,"7005016590","700501001","муниципальное унитарное предприятие \"Прогресс\""]
[null,null,"Кидальское",null,null,null,null,null,null,null,null,null,"700501702507","отсутствует","индивидуальный предприниматель Антипин Андрей Федорович"]
[null,null,"Клюквинское",null,null,null,null,null,null,null,null,null,"7006005110","700601001","муниципальное унитарное предприятие \"Каргасокский жилищно=эксплуатационный участок\" Каргасокского сельского поселения"]
[null,null,"Кожевниковское",null,null,null,null,null,null,null,null,null,"7006005632","700601001","муниципальное унитарное предприятие  Каргасокский \"Тепловодоканал\""]
[null,null,"Коломинское",null,null,null,null,null,null,null,null,null,"7006006153","700601001","муниципальное унитарное предприятие \"ЖКХ Сосновское\" муниципального образования \"Сосновское сельское поселение\""]
[null,null,"Комсомольское",null,null,null,null,null,null,null,null,null,"7006006160","700601001","муниципальное унитарное предприятие \"ЖКХ Молодежный\" муниципального образования \"Среднетымское сельское поселение\""]
[null,null,"Копыловское",null,null,null,null,null,null,null,null,null,"7006006298","700601001","муниципальное унитарное предприятие \"ЖКХ Тымское\" муниципального образования \"Тымское сельское поселение\""]
[null,null,"Корниловское",null,null,null,null,null,null,null,null,null,"7006007407","700601001","муниципальное унитарное предприятие \" Нововасюганское\" муниципального образования \"Нововасюганское сельское поселение\""]
[null,null,"Красногорское",null,null,null,null,null,null,null,null,null,"7006008432","700601001","муниципальное унитарное предприятие \"ЖКХ Васюган\" муниципального образования \"Средневасюганское сельское поселение\""]
[null,null,"Красноярское",null,null,null,null,null,null,null,null,null,"700700053744","отсутствует","индивидуальный предприниматель Волшуков Виктор Николаевич"]
[null,null,"Кривошеинское",null,null,null,null,null,null,null,null,null,"7007007583","700701001","общество с ограниченной ответственностью \"Риск\""]
[null,null,"Курлекское",null,null,null,null,null,null,null,null,null,"7007007657","700701001","общество с ограниченной ответственностью \"Заря - Сервис\""]
[null,null,"Куяновское",null,null,null,null,null,null,null,null,null,"7007009950","700701001","общество с ограниченной ответственностью \"Колпашевская тепловая компания\""]
[null,null,"Лукашкин-Ярское",null,null,null,null,null,null,null,null,null,"7007010120","700701001","общество с ограниченной ответственностью \"Водоканал - 2\""]
[null,null,"Макзырское",null,null,null,null,null,null,null,null,null,"7007010138","700701001","общество с ограниченной ответственностью \"Водоканал - 1\""]
[null,null,"Малиновское",null,null,null,null,null,null,null,null,null,"7007011117","700701001","общество с ограниченной ответственностью \"Энергия\""]
[null,null,"Межениновское",null,null,null,null,null,null,null,null,null,"7007011269","700701001","муниципальное унитарное предприятие \"Пламя\""]
[null,null,"Мирнинское",null,null,null,null,null,null,null,null,null,"7007011639","700701001","общество с ограниченной ответственностью \"Колпашевские очистные системы\""]
[null,null,"Михайловское",null,null,null,null,null,null,null,null,null,"700704480874","отсутствует","индивидуальный предприниматель Воронин Сергей Петрович"]
[null,null,"Могочинское",null,null,null,null,null,null,null,null,null,"7008006430","700801001","Кожевниковское районное муниципальное унитарное предприятие \"Коммунальное ремонтно-строительное хозяйство\""]
[null,null,"Молчановское",null,null,null,null,null,null,null,null,null,"7008006448","700801001","общество с ограниченной ответственностью  \"Кожевниковский КОМХОЗ\""]
[null,null,"Моряковское",null,null,null,null,null,null,null,null,null,"7008007554","700801001","общество с ограниченной ответственностью \"Селькомхоз\""]
[null,null,"Назинское",null,null,null,null,null,null,null,null,null,"7009003954","700901001","муниципальное унитарное предприятие \"Жилищно-коммунальное хозяйство Кривошеинского сельского поселения\""]
[null,null,"Наргинское",null,null,null,null,null,null,null,null,null,"7009004027","700901001","общество с ограниченной ответственностью \"H 2 O\""]
[null,null,"Нарымское",null,null,null,null,null,null,null,null,null,"7009004073","700901001","общество с ограниченной ответственностью \"Энергоресурс\""]
[null,null,"Наумовское",null,null,null,null,null,null,null,null,null,"701000127664","отсутствует","индивидуальный предприниматель Сысоев Владимир Геннадьевич"]
[null,null,"Национальное Иванкинское",null,null,null,null,null,null,null,null,null,"7010002296","701001001","общество с ограниченной ответственностью \"Энергия-М\""]
[null,null,"Новиковское",null,null,null,null,null,null,null,null,null,"7010002673","701001001","общество с ограниченной ответственностью \"Компания экологической безопасности\""]
[null,null,"Нововасюганское",null,null,null,null,null,null,null,null,null,"7010002916","701001001","общество с ограниченной ответственностью \"Водовод\""]
[null,null,"Новогоренское",null,null,null,null,null,null,null,null,null,"7010005579","701001001","исполнительно-распорядительный орган муниципального образованияТунгусовского сельского поселения Администрация Тунгусовского сельского поселения"]
[null,null,"Новокривошеинское",null,null,null,null,null,null,null,null,null,"7011003207","701101001","муниципальное унитарное предприятие \"Нарымское жилищно-коммунальное хозяйство\""]
[null,null,"Новокусковское",null,null,null,null,null,null,null,null,null,"7011005155","701101001","муниципальное казенное учреждение Администрация Новосельцевского сельского поселения - исполнительно распорядительный орган муниципального образования Новосельцевского сельского поселения"]
[null,null,"Новомариинское",null,null,null,null,null,null,null,null,null,"7011005162","701101001","муниципальное казенное учреждение Администрация Заводского сельского поселения - исполнительно распорядительный орган муниципального образования Заводского сельского поселения"]
[null,null,"Новониколаевское",null,null,null,null,null,null,null,null,null,"7011006014","700401001","общество с ограниченной ответственностью \"Универсал-Сервис\""]
[null,null,"Новоникольское",null,null,null,null,null,null,null,null,null,"7011006092","701101001","муниципальное унитарное предприятие \"Парабель - Энергокомплекс\""]
[null,null,"Новопокровское",null,null,null,null,null,null,null,null,null,"7011006215","701101001","общество с ограниченной ответственностью \"Строитель\""]
[null,null,"Новорождественское",null,null,null,null,null,null,null,null,null,"701100720660","отсутствует","индивидуальный предприниматель Стрельников Сергей Владимирович"]
[null,null,"Новоселовское",null,null,null,null,null,null,null,null,null,"701101197192","отсутствует","индивидуальный предприниматель Михайлов Андрей Васильевич"]
[null,null,"Новосельцевское",null,null,null,null,null,null,null,null,null,"7012004926","701201001","муниципальное унитарное предприятие \"Сергеевское\""]
[null,null,"Новоюгинское",null,null,null,null,null,null,null,null,null,"7012004958","701201001","муниципальное унитарное предприятие \"Жилкомхоз\""]
[null,null,"Октябрьское",null,null,null,null,null,null,null,null,null,"7012006779","701201001","общество с ограниченной ответственностью \"Луговское\""]
[null,null,"Орловское",null,null,null,null,null,null,null,null,null,"7012007162","701201001","общество с ограниченной ответственностью \"Жилкомфорт\""]
[null,null,"Палочкинское",null,null,null,null,null,null,null,null,null,"7012007170","701201001","общество с ограниченной ответственностью \"Альянс\""]
[null,null,"Парабельское",null,null,null,null,null,null,null,null,null,"7014000490","701701001","открытое акционерное общество \"Томскснаб\""]
[null,null,"Парбигское",null,null,null,null,null,null,null,null,null,"701401371204","отсутствует","индивидуальный предприниматель Тимофеев Юрий Никитович"]
[null,null,"Первомайское",null,null,null,null,null,null,null,null,null,"701401633450","отсутствует","ииндивидуальный предприниматель Градовец Александр Владимирович"]
[null,null,"Песочно-Дубровское",null,null,null,null,null,null,null,null,null,"7014027742","701401001","общество с ограниченной ответственностью \"Межениновская птицефабрика\""]
[null,null,"Петровское",null,null,null,null,null,null,null,null,null,"7014040790","701401001","общество с ограниченной ответственностью \"Тепло-энергетическое предприятие Лоскутовское\""]
[null,null,"Плотниковское",null,null,null,null,null,null,null,null,null,"7014041063","701401001","общество с ограниченной ответственностью \"ЖКХ Рыбаловское\""]
[null,null,"Побединское",null,null,null,null,null,null,null,null,null,"7014041634","701401001","общество с ограниченной ответственностью  \"Санаторий Синий Утес\""]
[null,null,"Подгорнское",null,null,null,null,null,null,null,null,null,"7014043021","701401001","общество с ограниченной ответственностью \"РЕКА+\""]
[null,null,"Поротниковское",null,null,null,null,null,null,null,null,null,"7014044794","701701001","общество с ограниченной ответственностью \"КП \"Ключи\""]
[null,null,"Пудовское",null,null,null,null,null,null,null,null,null,"7014045068","701401001","муниципальное унитарное предприятие Богашевского сельского поселения \"Орион\""]
[null,null,"Рыбаловское",null,null,null,null,null,null,null,null,null,"7014048076","701401001","общество с ограниченной ответственностью \"Восточная Инвестиционная Газовая Компания\""]
[null,null,"Сайгинское",null,null,null,null,null,null,null,null,null,"7014049866","701401001","муниципальное казенное предприятие Томского района \"Технополигон\""]
[null,null,"Саровское",null,null,null,null,null,null,null,null,null,"7014049915","701401001","общество с ограниченной ответственностью \"ЭКМО\""]
[null,null,"Северное",null,null,null,null,null,null,null,null,null,"7014053541","701401001","общество с ограниченной ответственностью \"Ресурс-Т\""]
[null,null,"Сергеевское",null,null,null,null,null,null,null,null,null,"7014054440","701401001","общество с ограниченной ответственностью \"Водоресурс\""]
[null,null,"Сосновское",null,null,null,null,null,null,null,null,null,"7014054979","701401001","муниципальное предприятие Зональненского сельского поселения \"Служба коммунального сервиса\""]
[null,null,"Спасское",null,null,null,null,null,null,null,null,null,"7014055027","701401001","муниципальное унитарное предприятие Мирненского сельского поселения \"ТВК\""]
[null,null,"Средневасюганское",null,null,null,null,null,null,null,null,null,"7014055404","701401001","муниципальное унитарное предприятие жилищно-коммунального хозяйства \"Исток\" Новорождественского сельского поселения"]
[null,null,"Среднетымское",null,null,null,null,null,null,null,null,null,"7014055644","701401001","общество с ограниченной ответственностью \"Управляющая компания \"Томскосельское\""]
[null,null,"Старицынское",null,null,null,null,null,null,null,null,null,"7014055796","701401001","общество с ограниченной ответственностью \"Восточная Водяная Компания\""]
[null,null,"Староювалинское",null,null,null,null,null,null,null,null,null,"7014055806","701401001","общество с ограниченной ответственностью \"Восточная Тепловая Компания\""]
[null,null,"Степановское",null,null,null,null,null,null,null,null,null,"7014055813","701401001","общество с ограниченной ответственностью \"Восточная Компания\""]
[null,null,"Суйгинское",null,null,null,null,null,null,null,null,null,"7014055845","701401001","общество с ограниченной ответственность \"Западная Тепловая Компания\""]
[null,null,"Тевризское",null,null,null,null,null,null,null,null,null,"7014055884","701401001","общество с ограниченной ответственностью \"Южная Тепловая Компания\""]
[null,null,"Тегульдетское",null,null,null,null,null,null,null,null,null,"7014056084","701401001","общество с ограниченной ответственностью \"Теплогазсервис\""]
[null,null,"Тогуровское",null,null,null,null,null,null,null,null,null,"7014056711","701401001","общество с ограниченной ответственностью \"Гарант\""]
[null,null,"Толпаровское",null,null,null,null,null,null,null,null,null,"7014057257","701401001","муниципальное унитарное предприятие Межениновского сельского поселения \"Жилищно-коммунальное хозяйство ВодСервис\""]
[null,null,"Трубоческое",null,null,null,null,null,null,null,null,null,"7014057320","701401001","муниципальное унитарное предприятие \"Жилищное коммунальное хозяйство Октябрьское\""]
[null,null,"Тунгуссовское",null,null,null,null,null,null,null,null,null,"7014057377","701401001","общество с ограниченной ответственностью \"Комсервис+М\""]
[null,null,"Турунтаевское",null,null,null,null,null,null,null,null,null,"7014057715","701401001","муниципальное унитарное предприятие Заречного сельского поселения \"Заречное\""]
[null,null,"Тымское",null,null,null,null,null,null,null,null,null,"7014057754","701701001","общество с ограниченной ответственностью \"Водоканал\""]
[null,null,"Улу-Юльское",null,null,null,null,null,null,null,null,null,"7014057779","701401001","муниципальное унитарное предприятие «ТУРУНТАЕВО-ПАРТНЕР»"]
[null,null,"Уртамское",null,null,null,null,null,null,null,null,null,"7014057916","701401001","муниципальное унитарное предприятие \"Норма\""]
[null,null,"Усть-Бакчарское",null,null,null,null,null,null,null,null,null,"7014059825","701401001","Муниципальное унитарное предприятие Мирненского сельского поселения \"ВК\""]
[null,null,"Усть-Тымское",null,null,null,null,null,null,null,null,null,"7014059920","701401001","муниципальное унитарное предприятие Спасского сельского поселения \"Техник\""]
[null,null,"Усть-Чижапское",null,null,null,null,null,null,null,null,null,"7014061454","701401001","общество с ограниченной ответственностью \"Ресурс\""]
[null,null,"Чажемтовское",null,null,null,null,null,null,null,null,null,"7015000373","701501001","муниципальное унитарное предприятие Чаинского района \"Чаинское производственное объединение жилищно-коммунального хозяйства\""]
[null,null,"Чаинское",null,null,null,null,null,null,null,null,null,"7015000535","701501001","областное государственное бюджетное учреждение здравоохранения \"Чаинская районная больница\""]
[null,null,"Черноярское",null,null,null,null,null,null,null,null,null,"7016000016","701601001","общество с ограниченной ответственностью \"Водоканал\""]
[null,null,"Чернышевское",null,null,null,null,null,null,null,null,null,"7016000030","701601001","общество с ограниченной ответственностью \"Автотранс\""]
[null,null,"Четское",null,null,null,null,null,null,null,null,null,"7016000584","701601001","муниципальное унитарное предприятие \"Комфорт\""]
[null,null,"Чилинское",null,null,null,null,null,null,null,null,null,"7016001098","701601001","областное государственное социальное учреждение \"Дом-интернат для престарелых и инвалидов \"Лесная дача\""]
[null,null,"Шегарское",null,null,null,null,null,null,null,null,null,"7016001620","701601001","областное государственное автономное учреждение \"Шегарский психоневрологический интернат \"ЗАБОТА\""]
[null,null,"Ягоднинское",null,null,null,null,null,null,null,null,null,"7016005617","701601001","общество с ограниченной ответственностью \"Шегарский водоканал\""]
[null,null,"Ягодное",null,null,null,null,null,null,null,null,null,"7016007156","701601001","общество с ограниченной отвественностью Управляющая компания \"Успех\""]
[null,null,null,null,null,null,null,null,null,null,null,null,"7017001968","701701001","онитарное муниципальное предприятие \"Спецавтохозяйство г. Томска\""]
[null,null,null,null,null,null,null,null,null,null,null,null,"7017002136","701701001","онитарное муниципальное предприятие г. Томска \"Комбинат Спецобслуживания\" по организации похорон и предоставлению связанных с ними услуг"]
[null,null,null,null,null,null,null,null,null,null,null,null,"7017004366","701701001","акционерное общество \"Транснефть-Центральная Сибирь\""]
[null,null,null,null,null,null,null,null,null,null,null,null,"7017005289","701702010","общество с ограниченной ответственностью \"Газпром трансгаз Томск\""]
[null,null,null,null,null,null,null,null,null,null,null,null,"7017005289","702243001","общество с ограниченной ответственностью \"Газпром трансгаз Томск\""]
[null,null,null,null,null,null,null,null,null,null,null,null,"7017012254","701401001","закрытое акционерное общество \"Сибирская Аграрная Группа\""]
[null,null,null,null,null,null,null,null,null,null,null,null,"7017063682","701401001","закрытое акционерное общество \"Восточная Инвестиционная Газовая Компания\""]
[null,null,null,null,null,null,null,null,null,null,null,null,"7017071531","701401001","общество с ограниченной ответственностью \"Квинта\""]
[null,null,null,null,null,null,null,null,null,null,null,null,"7017075536","701701001","общество с ограниченной ответственностью \"Томскнефтехим\""]
[null,null,null,null,null,null,null,null,null,null,null,null,"7017095349","701701001","открытое акционерное общество \"Организация \"Технотрон\""]
[null,null,null,null,null,null,null,null,null,null,null,null,"7017098220","701701001","общество с ограниченной ответственностью \"Завод приборных подшипников\""]
[null,null,null,null,null,null,null,null,null,null,null,null,"7017110131","701701001","закрытое акционерное общество Кондитерская фабрика \"Красная звезда\""]
[null,null,null,null,null,null,null,null,null,null,null,null,"7017123606","701701001","общество с ограниченной ответственностью \"Управляющая компания \"Томского приборного завода\""]
[null,null,null,null,null,null,null,null,null,null,null,null,"7017129118","701701001","общество с ограниченной ответственностью \"СетьСервис\""]
[null,null,null,null,null,null,null,null,null,null,null,null,"7017134397","701701001","общество с ограниченной ответственностью \"ГазТехСервис\""]
[null,null,null,null,null,null,null,null,null,null,null,null,"7017213271","701701001","общество с ограниченной ответственностью \"Томлесдрев\""]
[null,null,null,null,null,null,null,null,null,null,null,null,"7017245330","701701001","общество с ограниченной ответственностью \"Сетевая компания ТДСК\""]
[null,null,null,null,null,null,null,null,null,null,null,null,"7017249750","701701001","общество с ограниченной ответственностью «Термо»"]
[null,null,null,null,null,null,null,null,null,null,null,null,"7017253147","700743001","государственное унитарное предприятие Томской области  \"Областное дорожное ремонтно - строительное управление\""]
[null,null,null,null,null,null,null,null,null,null,null,null,"7017253147","701443001","государственное унитарное предприятие Томской области \"Областное дорожное ремонтно - строительное управление\""]
[null,null,null,null,null,null,null,null,null,null,null,null,"7017270664","701701001","общество с ограниченной ответственностью \"Томскводоканал\""]
[null,null,null,null,null,null,null,null,null,null,null,null,"7017291311","701701001","общество с ограниченной ответственностью \"Колос-С\""]
[null,null,null,null,null,null,null,null,null,null,null,null,"7017318531","701701001","общество с ограниченной ответственностью \"ЭнергоТЭК\""]
[null,null,null,null,null,null,null,null,null,null,null,null,"7017323595","701701001","общество с ограниченной ответственностью \"Тепловая компания \"Стандарт\""]
[null,null,null,null,null,null,null,null,null,null,null,null,"7017326170","701401001","общество с ограниченной ответственностью \"Аргентум\""]
[null,null,null,null,null,null,null,null,null,null,null,null,"7017351521","701701001","акционерное общество \"ТомскРТС\""]
[null,null,null,null,null,null,null,null,null,null,null,null,"7017373035","701701001","общество с ограниченной ответственностью \"Энергогарант\""]
[null,null,null,null,null,null,null,null,null,null,null,null,"7017373959","701701001","акционерное общество \"Томская генерация\""]
[null,null,null,null,null,null,null,null,null,null,null,null,"7017374014","701701001","общество с ограниченной ответсвенностью \"Городские очистные сооружения\""]
[null,null,null,null,null,null,null,null,null,null,null,null,"7020008610","702001001","открытое акционерное общество Финансово-строительная компания \"Газ Химстрой Инвест\""]
[null,null,null,null,null,null,null,null,null,null,null,null,"7020035798","701701001","федеральное казенное учреждение \"Исправительная колония № 3 Управления Федеральной службы исполнения наказаний по Томской области\""]
[null,null,null,null,null,null,null,null,null,null,null,null,"7021001569","701701001","федеральное государственное унитарное предприятие \"Комбинат коммунальных предприятий Томского научного центра  Сибирского отделения Российской академии наук\""]
[null,null,null,null,null,null,null,null,null,null,null,null,"7022000310","997150001","открытое акционерное общество \"Томскнефть\" Восточной Нефтяной Компании"]
[null,null,null,null,null,null,null,null,null,null,null,null,"7022010478","702201001","муниципальное унитарное предприятие \"Жилкомсервис\" Александровского сельского поселения"]
[null,null,null,null,null,null,null,null,null,null,null,null,"7022010799","702201001","общество с ограниченной ответственностью \"Энергонефть Томск\""]
[null,null,null,null,null,null,null,null,null,null,null,null,"7022011087","702201001","общество с ограниченной ответственностью \"Стрежевой теплоэнергоснабжение\""]
[null,null,null,null,null,null,null,null,null,null,null,null,"7022014835","702201001","муниципальное унитарное предприятие \"Комсервис\" Лукашкин-Ярского сельского поселения Александровского района Томской области"]
[null,null,null,null,null,null,null,null,null,null,null,null,"7022014842","702201001","муниципальное унитарное предприятие \"Жилищно-коммунальное хозяйство\" села  Назино"]
[null,null,null,null,null,null,null,null,null,null,null,null,"7022014874","702201001","муниципальное унитарное предприятие \"Комсервис\" Александровского района Томской области"]
[null,null,null,null,null,null,null,null,null,null,null,null,"7022017561","702201001","общество с ограниченной ответственностью \"Транспортные коммунальные системы\""]
[null,null,null,null,null,null,null,null,null,null,null,null,"7022018300","702201001","общество с ограниченной ответственностью \"Жилстрой\""]
[null,null,null,null,null,null,null,null,null,null,null,null,"7022019336","702201001","общество с ограниченной ответственностью \"ТРАНССИБ\""]
[null,null,null,null,null,null,null,null,null,null,null,null,"702280350128","отсутствует","индивидуальный предприниматель Голованов Андрей Николаевич"]
[null,null,null,null,null,null,null,null,null,null,null,null,"7023005209","702301001","общество с ограниченной ответственностью \"Северная Тепловая Компания\""]
[null,null,null,null,null,null,null,null,null,null,null,null,"7024021972","701401001","общество с ограниченной ответственностью \"Экополис\""]
[null,null,null,null,null,null,null,null,null,null,null,null,"7024024853","702401001","открытое акционерное общество \"Северский водоканал\""]
[null,null,null,null,null,null,null,null,null,null,null,null,"7024024860","702401001","открытое акционерное общество \"Тепловые сети\""]
[null,null,null,null,null,null,null,null,null,null,null,null,"7024028054","702401001","общество с ограниченной ответственностью \"Полигон твердых бытовых отходов комбината благоустройства\""]
[null,null,null,null,null,null,null,null,null,null,null,null,"7024029499","702401001","акционерное общество \"Сибирский химический комбинат\""]
[null,null,null,null,null,null,null,null,null,null,null,null,"7024032100","702401001","общество с ограниченной ответственностью \"ВКХ\""]
[null,null,null,null,null,null,null,null,null,null,null,null,"7024033488","702401001","общество с ограниченной ответственностью \"Управление энергоснабжения\""]
[null,null,null,null,null,null,null,null,null,null,null,null,"7024037595","702401001","общество с ограниченной ответственностью \"Северские энергетические сети\""]
[null,null,null,null,null,null,null,null,null,null,null,null,"7024038704","702401001","общество с ограниченной ответственностью \"Тепло плюс\""]
[null,null,null,null,null,null,null,null,null,null,null,null,"7024038863","702401001","общество с ограниченной ответственностью \"ВКХ \"Самусь\""]
[null,null,null,null,null,null,null,null,null,null,null,null,"7224031400","701401001","закрытое акционерное общество \"Сибирская Аграрная Группа Мясопереработка\""]
[null,null,null,null,null,null,null,null,null,null,null,null,"7224067981","722401001","общество с ограниченной ответственностью \"Промпереработка\""]
[null,null,null,null,null,null,null,null,null,null,null,null,"7708503727","540775040","Кузбасский территорильный  участокЗападно-Сибирской дирекции по тепловодоснабжению - структурного подразделения Центральной дирекции по тепловодоснабжению-филиал ОАО \"РЖД\""]
[null,null,null,null,null,null,null,null,null,null,null,null,"7722292838","701702001","федеральное государственное унитарное предприятие \"Научно-производственное объединение по медицинским иммунобиологическим препаратам \"Микроген\" Министерства здравоохранения Российской Федерации"]

{"sheet":"данные об организации","index":3,"n_rows":29,"n_cols":10,"rows_kept":29,"cut":false,"hidden":false,"merged":[[13,1,13,2],[11,0,11,3],[11,5,11,9],[0,0,0,9],[2,0,2,1],[3,0,3,1],[4,0,4,1],[5,0,5,1],[7,2,7,9],[6,0,6,1],[7,0,7,1],[2,2,2,9],[3,2,3,9],[4,2,4,9],[5,2,5,9],[6,2,6,9],[15,10,16,10],[17,10,18,10],[15,8,16,8],[17,8,18,8],[15,0,18,0],[15,1,18,2],[15,3,18,3],[15,5,18,5],[15,6,18,6],[25,5,28,5],[15,9,16,9],[17,9,18,9],[19,5,19,7],[21,5,24,5],[21,6,24,6],[21,8,22,8],[21,9,22,9],[23,8,24,8],[23,9,24,9],[25,6,28,6],[25,8,26,8],[27,8,28,8],[27,9,28,9],[25,9,26,9]]}
["Краткие сведения об организации"]
[]
["Наименование организации:",null,{"$f":"Титульный!C10","v":" "}]
["Юридический адрес:"]
["Тел/факс:"]
["E-mail:"]
["Должность руководителя"]
["Ф.И.О. (полностью)"]
[]
[]
[]
["Налогообложение",null,null,null,null,"Сведения об установленных тарифах на 2017 год"]
[]
["система налогообложения","объект налогообложения",null,"налоговая ставка",null,"№ приказа ДТР ТО","дата приказа","срок действия тарифа","величина тарифа, руб/куб.м.","НДС"]
[]
[{"$f":"Титульный!C23","v":"Общая"},null,null,{"$f":"IF(B16=\"доходы\",6,IF(B16=\"доходы минус расходы\",10,20))","v":20},null,null,null,"2017-01-01",null,{"$f":"IF(A16=\"Общая\",\"без учета НДС\",\"НДС не предусмотрен\")","v":"без учета НДС"}]
[null,null,null,null,null,null,null,"2017-06-30"]
[null,null,null,null,null,null,null,"2017-07-01",null,{"$f":"IF(A16=\"Общая\",\"без учета НДС\",\"НДС не предусмотрен\")","v":"без учета НДС"}]
[null,null,null,null,null,null,null,"2017-12-31"]
[null,null,null,null,null,"в том числе по компонентам"]
[null,null,null,null,null,"наименование компонента","ед.изм","срок действия тарифа","ед.изм","величина компоненты"]
[null,null,null,null,null,"холодная вода","руб/куб.м.",{"$f":"H16","v":"2017-01-01"},null,{"$f":"J16","v":"без учета НДС"}]
[null,null,null,null,null,null,null,{"$f":"H17","v":"2017-06-30"}]
[null,null,null,null,null,null,null,{"$f":"H18","v":"2017-07-01"},null,{"$f":"J18","v":"без учета НДС"}]
[null,null,null,null,null,null,null,{"$f":"H19","v":"2017-12-31"}]
[null,null,null,null,null,"тепловая энергия","руб/Гкал",{"$f":"H16","v":"2017-01-01"},null,{"$f":"J16","v":"без учета НДС"}]
[null,null,null,null,null,null,null,{"$f":"H17","v":"2017-06-30"}]
[null,null,null,null,null,null,null,{"$f":"H18","v":"2017-07-01"},null,{"$f":"J18","v":"без учета НДС"}]
[null,null,null,null,null,null,null,{"$f":"H19","v":"2017-12-31"}]

{"sheet":"Техн характер системы","index":4,"n_rows":55,"n_cols":4,"rows_kept":55,"cut":false,"hidden":false,"merged":[[10,0,10,3],[8,0,8,3],[0,0,0,3],[2,0,2,3]]}
[{"$f":"Титульный!C10","v":" "}]
[]
["Имущество, переданное по договору аренды (концессионному соглашению) и (или) принадлежащее на праве собственности"]
[]
["Район",{"$f":"Титульный!C6","v":0}]
[]
["МО",{"$f":"Титульный!C7","v":0}]
[]
[{"$f":"Титульный!C19","v":"горячее водоснабжение"}]
[]
[{"$f":"Титульный!C21","v":0}]
[]
["№ п/п","Показатель","Ед. изм.","Значение"]
["1","Установленная производительность оборудования","куб.м."]
["1.1","оборудование ЦТП","куб.м."]
["1.2","оборудование системы транспортирования воды","куб.м."]
[2,"Фактическая производительность оборудования","куб.м."]
["2.1","оборудование ЦТП","куб.м."]
["2.2","оборудование системы транспортирования воды","куб.м."]
["3","Уровень загрузки производственных мощностей","%",{"$f":"IF(SUM(F21:F22)=0,0,AVERAGE((F21:F22)))","v":0}]
["3.1","оборудование ЦТП","%",{"$f":"(IF(D15=0,0,D18/D15))*100","v":0}]
["3.2","оборудование системы транспортирования воды","%",{"$f":"(IF(D16=0,0,D19/D16))*100","v":0}]
["4","Общая протяженность сетей водоснабжения","м",{"$f":"SUM(D24:D33)","v":0}]
["4.1","диаметр     мм","м"]
["4.2","диаметр     мм","м"]
["4.3","диаметр     мм","м"]
["4.4","диаметр     мм","м"]
["4.5","диаметр     мм","м"]
["4.6",null,"м"]
["4.7",null,"м"]
["4.8",null,"м"]
["4.9",null,"м"]
["4.10",null,"м"]
["5","Количество ЦТП","ед."]
["6","Износ систем коммунальной инфраструктуры, в том числе:","%",{"$f":"IF(SUM(F36:F37)=0,0,AVERAGE((F36:F37)))","v":0}]
["6.1","оборудование ЦТП","%",{"$f":"IF(D42=0,0,D39/D42*100)","v":0}]
["6.2","оборудование системы транспортирования воды","%",{"$f":"IF(D43=0,0,D40/D43*100)","v":0}]
["7","Фактический срок службы оборудования, в том числе:","лет"]
["7.1","оборудование ЦТП","лет"]
["7.2","оборудование системы транспортирования воды","лет"]
["8","Нормативный срок службы оборудования, в том числе:","лет"]
["8.1","оборудование ЦТП","лет"]
["8.2","оборудование системы транспортирования воды","лет"]
["9","Удельный вес сетей, нуждающихся в замене","%",{"$f":"IF(D23=0,0,D45/D23*100)","v":0}]
["10","Протяженность сетей, нуждающихся в замене","м",{"$f":"SUM(D46:D55)","v":0}]
["10.1",{"$f":"B24","v":"диаметр     мм"},"м"]
["10.2",{"$f":"B25","v":"диаметр     мм"},"м"]
["10.3","диаметр     мм","м"]
["10.4","диаметр     мм","м"]
["10.5","диаметр     мм","м"]
["10.6",{"$f":"B29","v":0},"м"]
["10.7",0,"м"]
["10.8",0,"м"]
["10.9",0,"м"]
["10.10",0,"м"]

{"sheet":"полезный отпуск","index":5,"n_rows":55,"n_cols":46,"rows_kept":55,"cut":false,"hidden":false,"merged":[[34,0,38,0],[0,0,0,6],[1,0,1,6],[4,1,4,2],[6,1,6,2],[8,1,8,2],[34,1,34,11],[35,1,35,4],[35,5,35,11],[36,1,37,1],[36,2,37,2],[36,3,37,3],[36,4,37,4],[36,5,36,8],[36,9,36,11],[34,35,34,45],[36,28,36,31],[36,32,36,34],[35,28,35,34],[35,35,35,38],[35,39,35,45],[36,35,37,35],[36,36,37,36],[36,37,37,37],[36,38,37,38],[36,39,36,42],[36,43,36,45],[36,16,36,20],[36,21,36,23],[35,16,35,23],[34,12,34,23],[35,24,35,27],[36,15,37,15],[36,24,37,24],[36,25,37,25],[36,26,37,26],[36,27,37,27],[34,24,34,34],[36,14,37,14],[35,12,35,15],[36,12,37,12],[36,13,37,13],[5,3,5,4],[5,5,5,6],[5,7,5,8],[13,5,13,8],[11,1,11,12],[12,1,13,4],[11,0,14,0],[11,13,11,24],[12,13,13,16],[12,17,12,24],[13,17,13,20],[13,21,13,24],[13,9,13,12],[12,5,12,12],[11,25,11,36],[12,25,13,28],[12,29,12,36],[13,29,13,32],[13,33,13,36]]}
["Сводный отчет об объемах отпущенной воды на собственное потребление и сторонним потребителям за 2017 год"]
[{"$f":"Титульный!C21","v":0}]
["Район",{"$f":"Титульный!C6","v":0}]
[]
[null,"срок действия утвержденных тарифов",null,"01.01.2017- 30.06.2017","01.07.2017 - 31.12.2017","01.01.2017- 30.06.2017","01.07.2017 - 31.12.2017","01.01.2017- 30.06.2017","01.07.2017 - 31.12.2017"]
[null,null,null,"горячая вода",null,"компонент - тепловая энергия",null,"компонент - холодная вода"]
[null,"величина тарифов, руб/куб.м.",null,{"$f":"'данные об организации'!I16","v":0},{"$f":"'данные об организации'!I18","v":0},{"$f":"'данные об организации'!I26","v":0},{"$f":"'данные об организации'!I28","v":0},{"$f":"'данные об организации'!I22","v":0},{"$f":"'данные об организации'!I24","v":0}]
[]
[null,"НДС",null,{"$f":"'данные об организации'!J16","v":"без учета НДС"},{"$f":"'данные об организации'!J18","v":"без учета НДС"},{"$f":"'данные об организации'!J26","v":"без учета НДС"},{"$f":"'данные об организации'!J28","v":"без учета НДС"},{"$f":"'данные об организации'!J22","v":"без учета НДС"},{"$f":"'данные об организации'!J24","v":"без учета НДС"}]
[]
[]
["Период","ВСЕГО по тарифу за 2017 год",null,null,null,null,null,null,null,null,null,null,null,"Собственные потребители",null,null,null,null,null,null,null,null,null,null,null,"Сторонние потребители, ВСЕГО"]
[null,"горячая вода, ВСЕГО",null,null,null,"в том числе",null,null,null,null,null,null,null,"горячая вода, ВСЕГО",null,null,null,"в том числе",null,null,null,null,null,null,null,"горячая вода, ВСЕГО",null,null,null,"в том числе"]
[null,null,null,null,null,"компонент - тепловая энергия на горячее водоснабжение",null,null,null,"компонент - холодная вода на горячее водоснабжение",null,null,null,null,null,null,null,"компонент - тепловая энергия на горячее водоснабжение",null,null,null,"компонент - холодная вода на горячее водоснабжение",null,null,null,null,null,null,null,"компонент - тепловая энергия на горячее водоснабжение",null,null,null,"компонент - холодная вода на горячее водоснабжение"]
[null,"объем, всего ","Сумма","Выручка от реализации по данным бухгалтерского учета, всего ","отклонение","объем, всего ","Сумма","Выручка от реализации по данным бухгалтерского учета, всего ","отклонение","объем, всего ","Сумма","Выручка от реализации по данным бухгалтерского учета, всего ","отклонение","объем, всего ","Сумма","Выручка от реализации по данным бухгалтерского учета, всего ","отклонение","объем, всего ","Сумма","Выручка от реализации по данным бухгалтерского учета, всего ","отклонение","объем, всего ","Сумма","Выручка от реализации по данным бухгалтерского учета, всего ","отклонение","объем, всего ","Сумма","Выручка от реализации по данным бухгалтерского учета, всего ","отклонение","объем, всего ","Сумма","Выручка от реализации по данным бухгалтерского учета, всего ","отклонение","объем, всего ","Сумма","Выручка от реализации по данным бухгалтерского учета, всего ","отклонение"]
[1,2,3,4,5,6,7,8,9,10,11,12,13,14,15,16,17,18,19,20,21,22,23,24,25,26,27,28,29,30,31,32,33,34,35,36,37]
["Январь",{"$f":"N17+Z17","v":0},{"$f":"O17+AA17","v":0},0,{"$f":"D17-C17","v":0},{"$f":"R17+AD17","v":0},{"$f":"S17+AE17","v":0},{"$f":"T17+AF17","v":0},{"$f":"H17-G17","v":0},{"$f":"V17+AH17","v":0},{"$f":"W17+AI17","v":0},{"$f":"X17+AJ17","v":0},{"$f":"L17-K17","v":0},{"$f":"B41","v":0},{"$f":"D41","v":0},{"$f":"E41","v":0},{"$f":"P17-O17","v":0},{"$f":"F41","v":0},{"$f":"H41","v":0},{"$f":"I41","v":0},{"$f":"T17-S17","v":0},{"$f":"R17","v":0},{"$f":"K41","v":0},{"$f":"L41","v":0},{"$f":"X17-W17","v":0},{"$f":"M41+Y41+AJ41","v":0},{"$f":"O41+AA41+AL41","v":0},{"$f":"P41+AB41+AM41","v":0},{"$f":"AB17-AA17","v":0},{"$f":"R41+AC41+AN41","v":0},{"$f":"T41+AE41+AP41","v":0},{"$f":"U41+AF41+AQ41","v":0},{"$f":"AF17-AE17","v":0},{"$f":"Z17","v":0},{"$f":"W41+AH41+AS41","v":0},{"$f":"X41+AI41+AT41","v":0},{"$f":"AJ17-AI17","v":0}]
["Февраль",{"$f":"N18+Z18","v":0},0,0,{"$f":"D18-C18","v":0},{"$f":"R18+AD18","v":0},0,0,{"$f":"H18-G18","v":0},{"$f":"V18+AH18","v":0},0,0,{"$f":"L18-K18","v":0},{"$f":"B42","v":0},{"$f":"D42","v":0},{"$f":"E42","v":0},{"$f":"P18-O18","v":0},{"$f":"F42","v":0},{"$f":"H42","v":0},{"$f":"I42","v":0},{"$f":"T18-S18","v":0},{"$f":"R18","v":0},{"$f":"K42","v":0},{"$f":"L42","v":0},{"$f":"X18-W18","v":0},{"$f":"M42+Y42+AJ42","v":0},{"$f":"O42+AA42+AL42","v":0},{"$f":"P42+AB42+AM42","v":0},{"$f":"AB18-AA18","v":0},{"$f":"R42+AC42+AN42","v":0},{"$f":"T42+AE42+AP42","v":0},{"$f":"U42+AF42+AQ42","v":0},{"$f":"AF18-AE18","v":0},{"$f":"Z18","v":0},{"$f":"W42+AH42+AS42","v":0},{"$f":"X42+AI42+AT42","v":0},{"$f":"AJ18-AI18","v":0}]
["Март",0,0,0,0,0,0,0,0,0,0,0,0,0,0,0,0,0,0,0,0,0,0,0,0,0,0,0,0,0,0,0,0,0,0,0,0]
["Апрель",0,0,0,0,0,0,0,0,0,0,0,0,0,0,0,0,0,0,0,0,0,0,0,0,0,0,0,0,0,0,0,0,0,0,0,0]
["Май",0,0,0,0,0,0,0,0,0,0,0,0,0,0,0,0,0,0,0,0,0,0,0,0,0,0,0,0,0,0,0,0,0,0,0,0]
["Июнь",0,0,0,0,0,0,0,0,0,0,0,0,0,0,0,0,0,0,0,0,0,0,0,0,0,0,0,0,0,0,0,0,0,0,0,0]
["Июль",0,0,0,0,0,0,0,0,0,0,0,0,0,0,0,0,0,0,0,0,0,0,0,0,0,0,0,0,0,0,0,0,0,0,0,0]
["Август",0,0,0,0,0,0,0,0,0,0,0,0,0,0,0,0,0,0,0,0,0,0,0,0,0,0,0,0,0,0,0,0,0,0,0,0]
["Сентябрь",0,0,0,0,0,0,0,0,0,0,0,0,0,0,0,0,0,0,0,0,0,0,0,0,0,0,0,0,0,0,0,0,0,0,0,0]
["Октябрь",0,0,0,0,0,0,0,0,0,0,0,0,0,0,0,0,0,0,0,0,0,0,0,0,0,0,0,0,0,0,0,0,0,0,0,0]
["Ноябрь",0,0,0,0,0,0,0,0,0,0,0,0,0,0,0,0,0,0,0,0,0,0,0,0,0,0,0,0,0,0,0,0,0,0,0,0]
["Декабрь",0,0,0,0,0,0,0,0,0,0,0,0,0,0,0,0,0,0,0,0,0,0,0,0,0,0,0,0,0,0,0,0,0,0,0,0]
["Итого год",{"$f":"SUM(B17:B28)","v":0},{"$f":"SUM(C17:C28)","v":0},0,{"$f":"SUM(E17:E28)","v":0},{"$f":"SUM(F17:F28)","v":0},{"$f":"SUM(G17:G28)","v":0},{"$f":"SUM(H17:H28)","v":0},{"$f":"SUM(I17:I28)","v":0},{"$f":"SUM(J17:J28)","v":0},{"$f":"SUM(K17:K28)","v":0},{"$f":"SUM(L17:L28)","v":0},{"$f":"SUM(M17:M28)","v":0},0,0,0,0,0,0,0,0,0,0,0,0,0,0,0,0,0,0,0,0,0,0,0,0]
["в том числе I полугодие",{"$f":"SUM(B17:B22)","v":0},{"$f":"SUM(C17:C22)","v":0},0,0,{"$f":"SUM(F17:F22)","v":0},{"$f":"SUM(G17:G22)","v":0},0,0,{"$f":"SUM(J17:J22)","v":0},{"$f":"SUM(K17:K22)","v":0},0,0,{"$f":"SUM(N17:N22)","v":0},{"$f":"SUM(O17:O22)","v":0},0,{"$f":"SUM(Q17:Q22)","v":0},0,{"$f":"SUM(S17:S22)","v":0},0,0,{"$f":"SUM(V17:V22)","v":0},0,{"$f":"SUM(X17:X22)","v":0},0,{"$f":"SUM(Z17:Z22)","v":0},0,{"$f":"SUM(AB17:AB22)","v":0},0,{"$f":"SUM(AD17:AD22)","v":0},0,{"$f":"SUM(AF17:AF22)","v":0},0,{"$f":"SUM(AH17:AH22)","v":0},0,{"$f":"SUM(AJ17:AJ22)","v":0},0]
["в том числе II полугодие",{"$f":"SUM(B23:B28)","v":0},{"$f":"SUM(C23:C28)","v":0},0,0,{"$f":"SUM(F23:F28)","v":0},{"$f":"SUM(G23:G28)","v":0},0,0,{"$f":"SUM(J23:J28)","v":0},{"$f":"SUM(K23:K28)","v":0},0,0,{"$f":"SUM(N23:N28)","v":0},{"$f":"SUM(O23:O28)","v":0},0,{"$f":"SUM(Q23:Q28)","v":0},0,{"$f":"SUM(S23:S28)","v":0},0,0,{"$f":"SUM(V23:V28)","v":0},0,{"$f":"SUM(X23:X28)","v":0},0,{"$f":"SUM(Z23:Z28)","v":0},0,{"$f":"SUM(AB23:AB28)","v":0},0,{"$f":"SUM(AD23:AD28)","v":0},0,{"$f":"SUM(AF23:AF28)","v":0},0,{"$f":"SUM(AH23:AH28)","v":0},0,{"$f":"SUM(AJ23:AJ28)","v":0},0]
[]
[]
[]
["Месяц ","Собственное потребление",null,null,null,null,null,null,null,null,null,null,"Население",null,null,null,null,null,null,null,null,null,null,null,"Бюджетные организации",null,null,null,null,null,null,null,null,null,null,"Прочие организации"]
[null,"горячая вода",null,null,null,"в том числе",null,null,null,null,null,null,"горячая вода",null,null,null,"в том числе",null,null,null,null,null,null,null,"горячая вода",null,null,null,"в том числе",null,null,null,null,null,null,"горячая вода",null,null,null,"в том числе"]
[null,"Объем","Тариф","Сумма","Выручка от реализации по данным бухгалтерского учета, всего ","компонент - Тепловая энергия на горячее водоснабжение",null,null,null,"компонент - холодная вода на горячее водоснабжение",null,null,"Объем","Тариф","Сумма","Выручка от реализации по данным бухгалтерского учета, всего (3+4)","компонент - Тепловая энергия на горячее водоснабжение",null,null,null,null,"компонент - холодная вода на горячее водоснабжение",null,null,"Объем","Тариф","Сумма","Выручка от реализации по данным бухгалтерского учета, всего ","компонент - Тепловая энергия на горячее водоснабжение",null,null,null,"компонент - холодная вода на горячее водоснабжение",null,null,"Объем","Тариф","Сумма","Выручка от реализации по данным бухгалтерского учета, всего ","компонент - Тепловая энергия на горячее водоснабжение",null,null,null,"компонент - холодная вода на горячее водоснабжение"]
[null,null,null,null,null,"объем, всего ","Тариф","Сумма","Выручка от реализации по данным бухгалтерского учета, всего ","Тариф","Сумма","Выручка от реализации по данным бухгалтерского учета, всего ",null,null,null,null,"Среднее количество тепловой энергии, затраченной на подогрев холодной воды на 1 куб. м.","объем, всего ","Тариф","Сумма","Выручка от реализации по данным бухгалтерского учета, всего ","Тариф","Сумма","Выручка от реализации по данным бухгалтерского учета, всего ",null,null,null,null,"объем, всего ","Тариф","Сумма","Выручка от реализации по данным бухгалтерского учета, всего ","Тариф","Сумма","Выручка от реализации по данным бухгалтерского учета, всего ",null,null,null,null,"объем, всего ","Тариф","Сумма","Выручка от реализации по данным бухгалтерского учета, всего ","Тариф","Сумма","Выручка от реализации по данным бухгалтерского учета, всего "]
[null,"м3","руб./м3","руб.","руб.","Гкал./м3",null,null,null,null,null,null,"м3","руб./м3","руб.","руб.","Гкал./м3","Гкал",null,null,null,null,null,null,"м3","руб./м3","руб.","руб.","Гкал./м3",null,null,null,null,null,null,"м3","руб./м3","руб.","руб.","Гкал./м3"]
[1,8,9,10,11,12,null,null,13,null,null,null,2,3,4,5,6,7,null,null,null,null,null,null,8,9,10,11,12,null,null,13,null,null,null,14,15,null,null,null,null,null,16,17,18,19]
["Январь",null,{"$f":"$D$7","v":0},{"$f":"C41*B41","v":0},null,null,{"$f":"$F$7","v":0},{"$f":"G41*F41","v":0},null,{"$f":"$H$7","v":0},{"$f":"J41*I41","v":0},null,null,{"$f":"$F$7","v":0},{"$f":"N41*M41","v":0},null,null,null,{"$f":"$F$7","v":0},{"$f":"S41*R41","v":0},null,{"$f":"$H$7","v":0},{"$f":"V41*U41","v":0},null,null,{"$f":"$F$7","v":0},{"$f":"Z41*Y41","v":0},null,null,{"$f":"$F$7","v":0},{"$f":"AD41*AC41","v":0},null,{"$f":"$H$7","v":0},{"$f":"AG41*AF41","v":0},null,null,{"$f":"$F$7","v":0},{"$f":"AK41*AJ41","v":0},null,null,{"$f":"$F$7","v":0},{"$f":"AO41*AN41","v":0},null,{"$f":"$H$7","v":0},{"$f":"AR41*AQ41","v":0}]
["Февраль",null,0,{"$f":"C42*B42","v":0},null,null,0,{"$f":"G42*F42","v":0},null,0,{"$f":"J42*I42","v":0},null,null,0,{"$f":"N42*M42","v":0},null,null,null,0,{"$f":"S42*R42","v":0},null,0,{"$f":"V42*U42","v":0},null,null,0,{"$f":"Z42*Y42","v":0},null,null,0,{"$f":"AD42*AC42","v":0},null,0,{"$f":"AG42*AF42","v":0},null,null,0,{"$f":"AK42*AJ42","v":0},null,null,0,{"$f":"AO42*AN42","v":0},null,0,{"$f":"AR42*AQ42","v":0}]
["Март",null,0,0,null,null,0,0,null,0,0,null,null,0,0,null,null,null,0,0,null,0,0,null,null,0,0,null,null,0,0,null,0,0,null,null,0,0,null,null,0,0,null,0,0]
["Апрель",null,0,0,null,null,0,0,null,0,0,null,null,0,0,null,null,null,0,0,null,0,0,null,null,0,0,null,null,0,0,null,0,0,null,null,0,0,null,null,0,0,null,0,0]
["Май",null,0,0,null,null,0,0,null,0,0,null,null,0,{"$f":"N45*M45","v":0},null,null,null,0,{"$f":"S45*R45","v":0},null,0,0,null,null,0,{"$f":"Z45*Y45","v":0},null,null,0,{"$f":"AD45*AC45","v":0},null,0,0,null,null,0,{"$f":"AK45*AJ45","v":0},null,null,0,{"$f":"AO45*AN45","v":0},null,0,0]
["Июнь",null,0,0,null,null,0,0,null,0,0,null,null,0,0,null,null,null,0,{"$f":"S46*R46","v":0},null,0,0,null,null,0,{"$f":"Z46*Y46","v":0},null,null,0,{"$f":"AD46*AC46","v":0},null,0,0,null,null,0,{"$f":"AK46*AJ46","v":0},null,null,0,{"$f":"AO46*AN46","v":0},null,0,0]
["Июль",null,{"$f":"$E$7","v":0},0,null,null,{"$f":"$G$7","v":0},0,null,{"$f":"$I$7","v":0},0,null,null,{"$f":"$G$7","v":0},0,null,null,null,{"$f":"$G$7","v":0},0,null,{"$f":"$I$7","v":0},0,null,null,{"$f":"$G$7","v":0},0,null,null,{"$f":"$G$7","v":0},0,null,{"$f":"$I$7","v":0},0,null,null,{"$f":"$G$7","v":0},0,null,null,{"$f":"$G$7","v":0},0,null,{"$f":"$I$7","v":0},0]
["Август",null,0,0,null,null,0,0,null,0,0,null,null,0,0,null,null,null,0,0,null,0,0,null,null,0,0,null,null,0,0,null,0,0,null,null,0,0,null,null,0,0,null,0,0]
["Сентябрь",null,0,0,null,null,0,0,null,0,0,null,null,0,0,null,null,null,0,0,null,0,0,null,null,0,0,null,null,0,0,null,0,0,null,null,0,0,null,null,0,0,null,0,0]
["Октябрь",null,0,0,null,null,0,0,null,0,0,null,null,0,0,null,null,null,0,0,null,0,0,null,null,0,0,null,null,0,0,null,0,0,null,null,0,0,null,null,0,0,null,0,0]
["Ноябрь",null,0,0,null,null,0,0,null,0,0,null,null,0,0,null,null,null,0,0,null,0,0,null,null,0,0,null,null,0,0,null,0,0,null,null,0,0,null,null,0,0,null,0,0]
["Декабрь",null,0,0,null,null,0,0,null,0,0,null,null,0,0,null,null,null,0,0,null,0,0,null,null,0,0,null,null,0,0,null,0,0,null,null,0,0,null,null,0,0,null,0,0]
["Итого год",{"$f":"SUM(B41:B52)","v":0},{"$f":"SUM(C41:C52)","v":0},{"$f":"SUM(D41:D52)","v":0},{"$f":"SUM(E41:E52)","v":0},{"$f":"IF(B53=0,0,I53/B53)","v":0},{"$f":"IF(F53=0,0,H53/F53)","v":0},{"$f":"SUM(H41:H52)","v":0},{"$f":"SUM(I41:I52)","v":0},{"$f":"IF(I53=0,0,K53/I53)","v":0},{"$f":"SUM(K41:K52)","v":0},null,{"$f":"IF(I53=0,0,P53/I53)","v":0},{"$f":"IF(M53=0,0,O53/M53)","v":0},{"$f":"SUM(O41:O52)","v":0},{"$f":"SUM(P41:P52)","v":0},{"$f":"IF(M53=0,0,R53/M53)","v":0},{"$f":"SUM(R41:R52)","v":0},{"$f":"IF(R53=0,0,T53/R53)","v":0},{"$f":"SUM(T41:T52)","v":0},{"$f":"SUM(U41:U52)","v":0},{"$f":"IF(U53=0,0,W53/U53)","v":0},{"$f":"SUM(W41:W52)","v":0},0,0,0,0,0,0,{"$f":"IF(AC53=0,0,AE53/AC53)","v":0},{"$f":"SUM(AE41:AE52)","v":0},{"$f":"SUM(AF41:AF52)","v":0},{"$f":"IF(AF53=0,0,AH53/AF53)","v":0},{"$f":"SUM(AH41:AH52)","v":0},0,0,0,0,0,0,{"$f":"IF(AN53=0,0,AP53/AN53)","v":0},{"$f":"SUM(AP41:AP52)","v":0},{"$f":"SUM(AQ41:AQ52)","v":0},{"$f":"IF(AQ53=0,0,AS53/AQ53)","v":0},{"$f":"SUM(AS41:AS52)","v":0},{"$f":"SUM(AT41:AT52)","v":0}]
["в том числе I полугодие",{"$f":"SUM(B41:B46)","v":0},{"$f":"IF(B54=0,0,D54/B54)","v":0},{"$f":"SUM(D41:D46)","v":0},{"$f":"SUM(E41:E46)","v":0},{"$f":"IF(B54=0,0,I54/B54)","v":0},{"$f":"IF(F54=0,0,H54/F54)","v":0},{"$f":"SUM(H41:H46)","v":0},{"$f":"SUM(I41:I46)","v":0},{"$f":"IF(I54=0,0,K54/I54)","v":0},{"$f":"SUM(K41:K46)","v":0},null,{"$f":"SUM(M41:M46)","v":0},{"$f":"IF(M54=0,0,O54/M54)","v":0},{"$f":"SUM(O41:O46)","v":0},{"$f":"SUM(P41:P46)","v":0},{"$f":"IF(M54=0,0,R54/M54)","v":0},{"$f":"SUM(R41:R46)","v":0},{"$f":"IF(R54=0,0,T54/R54)","v":0},{"$f":"SUM(T41:T46)","v":0},{"$f":"SUM(U41:U46)","v":0},{"$f":"IF(U54=0,0,W54/U54)","v":0},{"$f":"SUM(W41:W46)","v":0},{"$f":"SUM(X41:X46)","v":0},{"$f":"SUM(Y41:Y46)","v":0},{"$f":"IF(Y54=0,0,AA54/Y54)","v":0},{"$f":"SUM(AA41:AA46)","v":0},{"$f":"SUM(AB41:AB46)","v":0},{"$f":"IF(Y54=0,0,AF54/Y54)","v":0},{"$f":"IF(AC54=0,0,AE54/AC54)","v":0},{"$f":"SUM(AE41:AE46)","v":0},{"$f":"SUM(AF41:AF46)","v":0},{"$f":"IF(AF54=0,0,AH54/AF54)","v":0},{"$f":"SUM(AH41:AH46)","v":0},{"$f":"SUM(AI41:AI46)","v":0},{"$f":"SUM(AJ41:AJ46)","v":0},{"$f":"IF(AJ54=0,0,AL54/AJ54)","v":0},{"$f":"SUM(AL41:AL46)","v":0},{"$f":"SUM(AM41:AM46)","v":0},{"$f":"IF(AJ54=0,0,AQ54/AJ54)","v":0},{"$f":"IF(AN54=0,0,AP54/AN54)","v":0},{"$f":"SUM(AP41:AP46)","v":0},{"$f":"SUM(AQ41:AQ46)","v":0},{"$f":"IF(AQ54=0,0,AS54/AQ54)","v":0},{"$f":"SUM(AS41:AS46)","v":0},{"$f":"SUM(AT41:AT46)","v":0}]
["в том числе II полугодие",{"$f":"SUM(B47:B52)","v":0},{"$f":"IF(B55=0,0,D55/B55)","v":0},{"$f":"SUM(D47:D52)","v":0},{"$f":"SUM(E47:E52)","v":0},{"$f":"IF(B55=0,0,I55/B55)","v":0},{"$f":"IF(F55=0,0,H55/F55)","v":0},{"$f":"SUM(H47:H52)","v":0},{"$f":"SUM(I47:I52)","v":0},{"$f":"IF(I55=0,0,K55/I55)","v":0},{"$f":"SUM(K47:K52)","v":0},null,{"$f":"SUM(M47:M52)","v":0},{"$f":"IF(M55=0,0,O55/M55)","v":0},{"$f":"SUM(O47:O52)","v":0},{"$f":"SUM(P47:P52)","v":0},{"$f":"IF(M55=0,0,R55/M55)","v":0},{"$f":"SUM(R47:R52)","v":0},{"$f":"IF(R55=0,0,T55/R55)","v":0},{"$f":"SUM(T47:T52)","v":0},{"$f":"SUM(U47:U52)","v":0},{"$f":"IF(U55=0,0,W55/U55)","v":0},{"$f":"SUM(W47:W52)","v":0},{"$f":"SUM(X47:X52)","v":0},{"$f":"SUM(Y47:Y52)","v":0},{"$f":"IF(Y55=0,0,AA55/Y55)","v":0},{"$f":"SUM(AA47:AA52)","v":0},{"$f":"SUM(AB47:AB52)","v":0},{"$f":"IF(Y55=0,0,AF55/Y55)","v":0},{"$f":"IF(AC55=0,0,AE55/AC55)","v":0},{"$f":"SUM(AE47:AE52)","v":0},{"$f":"SUM(AF47:AF52)","v":0},{"$f":"IF(AF55=0,0,AH55/AF55)","v":0},{"$f":"SUM(AH47:AH52)","v":0},{"$f":"SUM(AI47:AI52)","v":0},{"$f":"SUM(AJ47:AJ52)","v":0},{"$f":"IF(AJ55=0,0,AL55/AJ55)","v":0},{"$f":"SUM(AL47:AL52)","v":0},{"$f":"SUM(AM47:AM52)","v":0},{"$f":"IF(AJ55=0,0,AQ55/AJ55)","v":0},{"$f":"IF(AN55=0,0,AP55/AN55)","v":0},{"$f":"SUM(AP47:AP52)","v":0},{"$f":"SUM(AQ47:AQ52)","v":0},{"$f":"IF(AQ55=0,0,AS55/AQ55)","v":0},{"$f":"SUM(AS47:AS52)","v":0},{"$f":"SUM(AT47:AT52)","v":0}]

{"sheet":"отчет по реализации","index":6,"n_rows":77,"n_cols":16,"rows_kept":77,"cut":false,"hidden":false,"merged":[[44,9,69,9],[11,10,36,10],[44,10,69,10],[6,10,8,10],[4,0,4,15],[9,1,9,14],[42,1,42,14],[11,9,36,9],[0,0,0,15],[6,0,8,0],[6,1,8,1],[6,2,8,2],[6,4,6,8],[6,9,8,9],[6,11,6,15],[1,0,1,15],[2,0,2,15],[6,3,7,3],[7,4,7,5],[7,8,8,8],[7,11,7,12],[7,13,7,14],[7,15,8,15],[7,6,7,7]]}
["Сводный отчет по выручке от реализации холодной воды"]
[{"$f":"Титульный!C10","v":" "}]
[{"$f":"Титульный!C19","v":"горячее водоснабжение"}]
[null,"Район",{"$f":"Титульный!C6","v":0},null,"МО",{"$f":"Титульный!C7","v":0}]
[{"$f":"Титульный!C21","v":0}]
[]
["№","Вид потребителя","Степень благоустройства, наименование скота","Нормы потребления горячего водоснабжения, куб.м. в месяц на 1 чел","Фактический годовой объем реализации воды,  куб.м.",null,null,null,null,"тариф на горячую воду, руб/куб.м.","тариф на подогрев холодной воды для нужд ГВС, руб/куб.м.","Сумма, руб"]
[null,null,null,null,"горячая вода",null,"подогрев холодной воды для нужд горячего водоснабжения",null,"ВСЕГО",null,null,"горячая вода",null,"подогрев холодной воды для нужд горячего водоснабжения",null,"ИТОГО"]
[null,null,null,"ГВС","норматив","прибор учета","норматив","прибор учета",null,null,null,"норматив","прибор учета","норматив","прибор учета"]
[null,"1-е полугодие 2017 года"]
["1.","Население "]
["1.1."," хозяйственно-питьевые нужды","Квартиры с ваннами длиной от 1500 до 1700 мм, оборудованными душами",null,null,null,null,null,{"$f":"SUM(E12:H12)","v":0},{"$f":"'данные об организации'!I16","v":0},{"$f":"'данные об организации'!I16-'данные об организации'!I22","v":0},{"$f":"E12*$J$12","v":0},{"$f":"F12*$J$12","v":0},{"$f":"G12*$K$12","v":0},{"$f":"H12*$K$12","v":0},{"$f":"SUM(L12:O12)","v":0}]
["1.2."," хозяйственно-питьевые нужды","Квартиры  без ванн,  без ГВС и кан-ции",null,null,null,null,null,{"$f":"SUM(E13:H13)","v":0},null,null,{"$f":"E13*$J$12","v":0},{"$f":"F13*$J$12","v":0},{"$f":"G13*$K$12","v":0},{"$f":"H13*$K$12","v":0},{"$f":"SUM(L13:O13)","v":0}]
["1.3."," хозяйственно-питьевые нужды","Квартиры с ваннами длиной от 1500 до 1700 мм, оборудованными душами",null,null,null,null,null,0,null,null,0,0,0,0,0]
["1.4."," хозяйственно-питьевые нужды","Квартиры с  общими душами на этаже",null,null,null,null,null,0,null,null,0,0,0,0,0]
["1.5."," хозяйственно-питьевые нужды","Квартиры  с ваннами и местным  ГВС (индивид эл.бойлера)",null,null,null,null,null,0,null,null,0,0,0,0,0]
["1.6."," хозяйственно-питьевые нужды","Квартиры  с ваннами и местным  ГВС (общий т/обменник от отопления 252 дня)",null,null,null,null,null,0,null,null,0,0,0,0,0]
["1.7."," хозяйственно-питьевые нужды","Квартиры с ваннами длиной от 1500 до 1700 мм, оборудованными душами",null,null,null,null,null,0,null,null,0,0,0,0,{"$f":"SUM(L18:O18)","v":0}]
["1.8."," хозяйственно-питьевые нужды","Квартиры  с ваннами и местным  ГВС (индивид эл.бойлера)",null,null,null,null,null,0,null,null,0,0,0,0,0]
["1.9."," хозяйственно-питьевые нужды","Квартиры с ваннами длиной от 1500 до 1700 мм, оборудованными душами",null,null,null,null,null,0,null,null,0,0,0,0,0]
["1.10."," хозяйственно-питьевые нужды","Квартиры с ваннами длиной от 1500 до 1700 мм, оборудованными душами",null,null,null,null,null,0,null,null,0,0,0,0,0]
["1.11."," хозяйственно-питьевые нужды","Квартиры с ваннами сидячими, оборудованными душами",null,null,null,null,null,0,null,null,0,0,0,0,0]
["1.12."," хозяйственно-питьевые нужды","Квартиры с общими душами на этаже",null,null,null,null,null,0,null,null,0,0,0,0,0]
["1.13."," хозяйственно-питьевые нужды","Квартиры с ваннами длиной от 1500 до 1700 мм, оборудованными душами",null,null,null,null,null,0,null,null,0,0,0,0,0]
["1.14."," хозяйственно-питьевые нужды","Квартиры с ваннами длиной от 1500 до 1700 мм, оборудованными душами",null,null,null,null,null,0,null,null,0,0,0,0,0]
["1.15."," хозяйственно-питьевые нужды","Квартиры с общими душами в секции",null,null,null,null,null,0,null,null,0,0,0,0,0]
["1.16."," хозяйственно-питьевые нужды","Квартиры с ваннами длиной от 1500 до 1700 мм, оборудованными душами",null,null,null,null,null,0,null,null,0,0,0,0,0]
["1.17."," хозяйственно-питьевые нужды","с водопроводом без канализации",null,null,null,null,null,0,null,null,0,0,0,0,0]
["1.18."," хозяйственно-питьевые нужды","водопровод, ванны без ГВС и кан-ции",null,null,null,null,null,0,null,null,0,0,0,0,0]
["1.19."," хозяйственно-питьевые нужды","с ваннами, оборудованными душами и с канализацией",null,null,null,null,null,0,null,null,0,0,0,0,0]
["1.20."," хозяйственно-питьевые нужды","с водопроводом без канализации",null,null,null,null,null,0,null,null,0,0,0,0,0]
["1.21."," хозяйственно-питьевые нужды","водопровод, ванны без ГВС и кан-ции",null,null,null,null,null,0,null,null,0,0,0,0,0]
["1.22."," хозяйственно-питьевые нужды","с ваннами, оборудованными душами и с канализацией",null,null,null,null,null,0,null,null,0,0,0,0,0]
["1.23."," хозяйственно-питьевые нужды","с водопроводом без канализации",null,null,null,null,null,0,null,null,0,0,0,0,0]
["1.24."," хозяйственно-питьевые нужды","водопровод, ванны без ГВС и кан-ции",null,null,null,null,null,0,null,null,0,0,0,0,0]
["1.25."," хозяйственно-питьевые нужды","с ваннами, оборудованными душами и с канализацией",null,null,null,null,null,0,null,null,0,0,0,0,0]
["1.26.",null,null,null,null,null,null,null,0,null,null,0,0,0,0,0]
[null,"перерасчеты",null,"х","х","х",null,null,"х","контроль",null,"х","х","х","х"]
[null,"Итого население",null,null,{"$f":"SUM(E12:E37)","v":0},{"$f":"SUM(F12:F37)","v":0},{"$f":"SUM(G12:G37)","v":0},0,0,{"$f":"I39-'полезный отпуск'!M54","v":0},null,{"$f":"SUM(L12:L37)","v":0},0,0,0,{"$f":"SUM(P12:P38)","v":0}]
["2.","Итого бюджет",null,null,null,null,null,null,0,{"$f":"I40-'полезный отпуск'!Y54","v":0},null,{"$f":"E40*$J$12","v":0},{"$f":"F40*$J$12","v":0},{"$f":"G40*$K$12","v":0},{"$f":"H40*$K$12","v":0},{"$f":"SUM(L40:O40)","v":0}]
["3.","Итого прочие",null,null,null,null,null,null,0,{"$f":"I41-'полезный отпуск'!AJ54","v":0},null,0,0,0,0,{"$f":"SUM(L41:O41)","v":0}]
["4.","ВСЕГО 1-е полугодие",null,null,{"$f":"SUM(E39:E41)","v":0},{"$f":"SUM(F39:F41)","v":0},0,0,0,{"$f":"I42-'полезный отпуск'!Z30","v":0},null,{"$f":"SUM(L39:L41)","v":0},0,0,0,0]
[null,"2-е полугодие 2017 года"]
["1.","Население "]
[{"$f":"IF(A12=\"\",\"\",A12)","v":"1.1."}," хозяйственно-питьевые нужды","Квартиры с ваннами длиной от 1500 до 1700 мм, оборудованными душами",null,null,null,null,null,{"$f":"SUM(E45:H45)","v":0},{"$f":"'данные об организации'!I18","v":0},{"$f":"'данные об организации'!I18-'данные об организации'!I24","v":0},{"$f":"E45*$J$45","v":0},{"$f":"F45*$J$45","v":0},{"$f":"G45*$K$45","v":0},{"$f":"H45*$K$45","v":0},{"$f":"SUM(L45:O45)","v":0}]
["1.2."," хозяйственно-питьевые нужды","Квартиры  без ванн,  без ГВС и кан-ции",null,null,null,null,null,{"$f":"SUM(E46:H46)","v":0},null,null,{"$f":"E46*$J$45","v":0},{"$f":"F46*$J$45","v":0},{"$f":"G46*$K$45","v":0},{"$f":"H46*$K$45","v":0},{"$f":"SUM(L46:O46)","v":0}]
["1.3."," хозяйственно-питьевые нужды","Квартиры с ваннами длиной от 1500 до 1700 мм, оборудованными душами",null,null,null,null,null,0,null,null,0,0,0,0,0]
["1.4."," хозяйственно-питьевые нужды","Квартиры с  общими душами на этаже",null,null,null,null,null,0,null,null,0,0,0,0,0]
["1.5."," хозяйственно-питьевые нужды","Квартиры  с ваннами и местным  ГВС (индивид эл.бойлера)",null,null,null,null,null,0,null,null,0,0,0,0,0]
["1.6."," хозяйственно-питьевые нужды","Квартиры  с ваннами и местным  ГВС (общий т/обменник от отопления 252 дня)",null,null,null,null,null,0,null,null,0,0,0,0,0]
["1.7."," хозяйственно-питьевые нужды","Квартиры с ваннами длиной от 1500 до 1700 мм, оборудованными душами",null,null,null,null,null,0,null,null,0,0,0,0,0]
["1.8."," хозяйственно-питьевые нужды","Квартиры  с ваннами и местным  ГВС (индивид эл.бойлера)",null,null,null,null,null,0,null,null,0,0,0,0,0]
["1.9."," хозяйственно-питьевые нужды","Квартиры с ваннами длиной от 1500 до 1700 мм, оборудованными душами",null,null,null,null,null,0,null,null,0,0,0,0,0]
["1.10."," хозяйственно-питьевые нужды","Квартиры с ваннами длиной от 1500 до 1700 мм, оборудованными душами",null,null,null,null,null,0,null,null,0,0,0,0,0]
["1.11."," хозяйственно-питьевые нужды","Квартиры с ваннами сидячими, оборудованными душами",null,null,null,null,null,0,null,null,0,0,0,0,0]
["1.12."," хозяйственно-питьевые нужды","Квартиры с общими душами на этаже",null,null,null,null,null,0,null,null,0,0,0,0,0]
["1.13."," хозяйственно-питьевые нужды","Квартиры с ваннами длиной от 1500 до 1700 мм, оборудованными душами",null,null,null,null,null,0,null,null,0,0,0,0,0]
["1.14."," хозяйственно-питьевые нужды","Квартиры с ваннами длиной от 1500 до 1700 мм, оборудованными душами",null,null,null,null,null,0,null,null,0,0,0,0,0]
["1.15."," хозяйственно-питьевые нужды","Квартиры с общими душами в секции",null,null,null,null,null,0,null,null,0,0,0,0,0]
["1.16."," хозяйственно-питьевые нужды","Квартиры с ваннами длиной от 1500 до 1700 мм, оборудованными душами",null,null,null,null,null,0,null,null,0,0,0,0,0]
["1.17."," хозяйственно-питьевые нужды","с водопроводом без канализации",null,null,null,null,null,0,null,null,0,0,0,0,0]
["1.18."," хозяйственно-питьевые нужды","водопровод, ванны без ГВС и кан-ции",null,null,null,null,null,0,null,null,0,0,0,0,0]
["1.19."," хозяйственно-питьевые нужды","с ваннами, оборудованными душами и с канализацией",null,null,null,null,null,0,null,null,0,0,0,0,0]
["1.20."," хозяйственно-питьевые нужды","с водопроводом без канализации",null,null,null,null,null,0,null,null,0,0,0,0,0]
["1.21."," хозяйственно-питьевые нужды","водопровод, ванны без ГВС и кан-ции",null,null,null,null,null,0,null,null,0,0,0,0,0]
["1.22."," хозяйственно-питьевые нужды","с ваннами, оборудованными душами и с канализацией",null,null,null,null,null,0,null,null,0,0,0,0,0]
["1.23."," хозяйственно-питьевые нужды","с водопроводом без канализации",null,null,null,null,null,0,null,null,0,0,0,0,0]
["1.24."," хозяйственно-питьевые нужды","водопровод, ванны без ГВС и кан-ции",null,null,null,null,null,0,null,null,0,0,0,0,0]
["1.25."," хозяйственно-питьевые нужды","с ваннами, оборудованными душами и с канализацией",null,null,null,null,null,0,null,null,0,0,0,0,0]
["1.26.","","",{"$f":"IF(C70=\"\",\"\",\"х\")","v":""},null,null,null,null,0,null,null,0,0,0,0,0]
[null,"перерасчеты",null,"х","х","х",null,null,"х","контроль",null,"х","х","х","х"]
[null,"Итого население",null,null,{"$f":"SUM(E45:E70)","v":0},{"$f":"SUM(F45:F70)","v":0},{"$f":"SUM(G45:G70)","v":0},0,{"$f":"SUM(E72:H72)","v":0},{"$f":"I72-'полезный отпуск'!M55","v":0},null,{"$f":"SUM(L45:L70)","v":0},0,0,0,{"$f":"SUM(P45:P71)","v":0}]
["2.","Итого бюджет",null,null,null,null,null,null,0,{"$f":"I73-'полезный отпуск'!Y55","v":0},null,{"$f":"E73*$J$45","v":0},{"$f":"F73*$J$45","v":0},{"$f":"G73*$K$45","v":0},{"$f":"H73*$K$45","v":0},{"$f":"SUM(L73:O73)","v":0}]
["3.","Итого прочие",null,null,null,null,null,null,0,{"$f":"I74-'полезный отпуск'!AJ55","v":0},null,0,0,0,0,{"$f":"SUM(L74:O74)","v":0}]
["4.","ВСЕГО 2-е полугодие",null,null,{"$f":"SUM(E72:E74)","v":0},{"$f":"SUM(F72:F74)","v":0},{"$f":"SUM(G72:G74)","v":0},{"$f":"SUM(H72:H74)","v":0},0,{"$f":"I75-'полезный отпуск'!Z31","v":0},null,{"$f":"SUM(L72:L74)","v":0},0,0,0,0]
[]
["5.","ГОД ВСЕГО",null,null,{"$f":"E42+E75","v":0},{"$f":"F42+F75","v":0},0,0,0,null,null,0,0,0,0,{"$f":"P42+P75","v":0}]

{"sheet":"Смета факт","index":7,"n_rows":21,"n_cols":8,"rows_kept":21,"cut":false,"hidden":false,"merged":[[7,5,8,6],[0,0,0,3],[1,0,1,3],[2,0,2,3],[7,0,9,0],[7,1,9,1]]}
["Фактическая смета расходов и НВВ по установленному тарифу в сфере водоснабжения за 2017 год"]
[{"$f":"Титульный!C19","v":"горячее водоснабжение"}]
[{"$f":"Титульный!C21","v":0}]
["район",{"$f":"Титульный!C6","v":0}]
[]
["МО",{"$f":"Титульный!C7","v":0}]
[]
["№ п/п","Наименование статьи","Утверждено","факт по данным организации","факт принятый экспертом","Анализ эксперта",null,"отклонение"]
[null,null,"Сумма, руб","Сумма, руб","Сумма, руб",null,null,"Сумма, руб"]
[null,null,"ВСЕГО","ВСЕГО","ВСЕГО","ВСЕГО по отчету по реализации","по форме 2","ВСЕГО"]
[1,2,3,4,5,6,7,"8=5-3"]
["1.","Стоимость покупной воды",null,null,null,{"$f":"('отчет по реализации'!E42+'отчет по реализации'!F42+SUM('полезный отпуск'!M17:M22))*('отчет по реализации'!J12-'отчет по реализации'!K12)+('отчет по реализации'!E75+'отчет по реализации'!F75+SUM('полезный отпуск'!M23:M28))*('отчет по реализации'!J45-'отчет по реализации'!K45)","v":0},null,{"$f":"E12-C12","v":0}]
["2.","Стоимость тепловой энергии на подогрев воды",null,null,null,{"$f":"('отчет по реализации'!I42+SUM('полезный отпуск'!M17:M22))*'отчет по реализации'!K12+('отчет по реализации'!I75+SUM('полезный отпуск'!M23:M28))*'отчет по реализации'!K45","v":0},null,{"$f":"E13-C13","v":0}]
["3.","Финансовый результат ",null,null,null,null,null,{"$f":"E14-C14","v":0}]
["IХ","НЕОБХОДИМАЯ ВАЛОВАЯ ВЫРУЧКА",null,{"$f":"D12+D13","v":0},{"$f":"E12+E13","v":0},{"$f":"F12+F13","v":0},null,{"$f":"H12+H13","v":0}]
["16.","Товарная продукция",null,null,null,{"$f":"'отчет по реализации'!P77","v":0},{"$f":"'форма №2'!C11","v":0},{"$f":"E16-C16","v":0}]
["17.","Затраты на собственное потребление",null,null,null,{"$f":"F15-F16","v":0},null,{"$f":"E17-C17","v":0}]
["18.","Отпущено воды всего, м3, в том числе: ",null,{"$f":"'полезный отпуск'!B29","v":0},{"$f":"'полезный отпуск'!B29","v":0},{"$f":"D18","v":0},null,{"$f":"'полезный отпуск'!E29","v":0}]
["18.1.","на собственное потребление",null,{"$f":"'полезный отпуск'!N29","v":0},{"$f":"'полезный отпуск'!N29","v":0},{"$f":"D19","v":0},null,{"$f":"'полезный отпуск'!Q29","v":0}]
["18.2.","сторонним потребителям",null,{"$f":"'полезный отпуск'!Z29","v":0},{"$f":"'полезный отпуск'!P29","v":0},{"$f":"D20","v":0},null,{"$f":"'полезный отпуск'!S29","v":0}]
["X","Цена (тариф) на горячую воду, руб./м3",null,{"$f":"IF(D18=0,0,D15/D18)","v":0},{"$f":"IF(E18=0,0,E15/E18)","v":0},{"$f":"IF(F18=0,0,F15/F18)","v":0},null,{"$f":"IF(H18=0,0,H15/H18)","v":0}]

{"sheet":"форма №2","index":8,"n_rows":170,"n_cols":3,"rows_kept":170,"cut":false,"hidden":false,"merged":[[0,0,0,2],[1,0,1,2],[3,2,4,2],[3,0,4,0],[3,1,4,1]]}
["Отчёт по бухгалтерской форме № 2 за 2017 год  с детализацией по видам деятельности"]
[{"$f":"Титульный!C10","v":" "}]
[]
["№ п/п","Наименование показателя","Сумма по данным организации, руб"]
[]
["I","Доходы и расходы по обычным видам деятельности"]
["1.1","Выручка (нетто) от продажи товаров, продукции, работ, услуг (за минусом налога на добавленную стоимость, акцизов и аналогичных обязательных платежей)",{"$f":"SUM(C8:C22)","v":0}]
["1.1.1","тепловая энергия"]
["1.1.2","электроэнергия"]
["1.1.3","холодная вода"]
["1.1.4",{"$f":"Титульный!C19","v":"горячее водоснабжение"}]
["1.1.5","водоотведение (очистка сточных вод)"]
["1.1.6","водоотведение"]
["1.1.7","очистка сточных вод"]
["1.1.8","техническая вода"]
["1.1.9","очистка воды"]
["1.1.10"]
["1.1.11"]
["1.1.12"]
["1.1.13"]
["1.1.14"]
["1.1.15","прочие (нерегулируемые) виды деятельности"]
["1.2","Себестоимость проданных товаров, продукции, работ, услуг",{"$f":"SUM(C24:C38)","v":0}]
["1.2.1",{"$f":"B8","v":"тепловая энергия"}]
["1.2.2","электроэнергия"]
["1.2.3","холодная вода"]
["1.2.4","горячее водоснабжение"]
["1.2.5","водоотведение (очистка сточных вод)"]
["1.2.6","водоотведение"]
["1.2.7","очистка сточных вод"]
["1.2.8","техническая вода"]
["1.2.9","очистка воды"]
["1.2.10",0]
["1.2.11",0]
["1.2.12",0]
["1.2.13",0]
["1.2.14",0]
["1.2.15","прочие (нерегулируемые) виды деятельности"]
["1.3","Валовая прибыль",{"$f":"SUM(C40:C54)","v":0}]
["1.3.1",{"$f":"B24","v":"тепловая энергия"},{"$f":"C8-C24","v":0}]
["1.3.2","электроэнергия",{"$f":"C9-C25","v":0}]
["1.3.3","холодная вода",0]
["1.3.4","горячее водоснабжение",0]
["1.3.5","водоотведение (очистка сточных вод)",0]
["1.3.6","водоотведение",0]
["1.3.7","очистка сточных вод",0]
["1.3.8","техническая вода",0]
["1.3.9","очистка воды",0]
["1.3.10",0,0]
["1.3.11",0,0]
["1.3.12",0,0]
["1.3.13",0,0]
["1.3.14",0,0]
["1.3.15","прочие (нерегулируемые) виды деятельности",0]
["1.4","Коммерческие расходы",{"$f":"SUM(C56:C70)","v":0}]
["1.4.1",{"$f":"B40","v":"тепловая энергия"}]
["1.4.2","электроэнергия"]
["1.4.3","холодная вода"]
["1.4.4","горячее водоснабжение"]
["1.4.5","водоотведение (очистка сточных вод)"]
["1.4.6","водоотведение"]
["1.4.7","очистка сточных вод"]
["1.4.8","техническая вода"]
["1.4.9","очистка воды"]
["1.4.10",0]
["1.4.11",0]
["1.4.12",0]
["1.4.13",{"$f":"B52","v":0}]
["1.4.14",0]
["1.4.15","прочие (нерегулируемые) виды деятельности"]
["1.5","Управленческие расходы",{"$f":"SUM(C72:C86)","v":0}]
["1.5.1",{"$f":"B56","v":"тепловая энергия"}]
["1.5.2","электроэнергия"]
["1.5.3","холодная вода"]
["1.5.4","горячее водоснабжение"]
["1.5.5","водоотведение (очистка сточных вод)"]
["1.5.6","водоотведение"]
["1.5.7","очистка сточных вод"]
["1.5.8","техническая вода"]
["1.5.9","очистка воды"]
["1.5.10",0]
["1.5.11",0]
["1.5.12",0]
["1.5.13",{"$f":"B68","v":0}]
["1.5.14",0]
["1.5.15","прочие (нерегулируемые) виды деятельности"]
["1.6","Прибыль (убыток) от продаж ",{"$f":"SUM(C88:C102)","v":0}]
["1.6.1",{"$f":"B8","v":"тепловая энергия"},{"$f":"C40-C56-C72","v":0}]
["1.6.2","электроэнергия",{"$f":"C41-C57-C73","v":0}]
["1.6.3","холодная вода",0]
["1.6.4","горячее водоснабжение",0]
["1.6.5","водоотведение (очистка сточных вод)",0]
["1.6.6","водоотведение",0]
["1.6.7","очистка сточных вод",0]
["1.6.8","техническая вода",0]
["1.6.9","очистка воды",0]
["1.6.10",0,0]
["1.6.11",0,0]
["1.6.12",0,0]
["1.6.13",0,0]
["1.6.14",0,0]
["1.6.15","прочие (нерегулируемые) виды деятельности",0]
["II","Прочие доходы и расходы",{"$f":"C104-C120","v":0}]
["2.3","Прочие доходы",{"$f":"SUM(C105:C119)","v":0}]
["2.3.1",{"$f":"B88","v":"тепловая энергия"}]
["2.3.2",{"$f":"B89","v":"электроэнергия"}]
["2.3.3","холодная вода"]
["2.3.4","горячее водоснабжение"]
["2.3.5","водоотведение (очистка сточных вод)"]
["2.3.6","водоотведение"]
["2.3.7","очистка сточных вод"]
["2.3.8","техническая вода"]
["2.3.9","очистка воды"]
["2.3.10",0]
["2.3.11",0]
["2.3.12",0]
["2.3.13",0]
["2.3.14",0]
["2.3.15","прочие (нерегулируемые) виды деятельности"]
["2.4","Прочие расходы",{"$f":"SUM(C121:C135)","v":0}]
["2.4.1",{"$f":"B105","v":"тепловая энергия"}]
["2.4.2",{"$f":"B106","v":"электроэнергия"}]
["2.4.3","холодная вода"]
["2.4.4","горячее водоснабжение"]
["2.4.5","водоотведение (очистка сточных вод)"]
["2.4.6","водоотведение"]
["2.4.7","очистка сточных вод"]
["2.4.8","техническая вода"]
["2.4.9","очистка воды"]
["2.4.10",0]
["2.4.11",0]
["2.4.12",0]
["2.4.13",0]
["2.4.14",0]
["2.4.15","прочие (нерегулируемые) виды деятельности"]
["3","Прибыль (убыток) до налогообложения ",{"$f":"SUM(C137:C151)","v":0}]
["3.1.1",{"$f":"B8","v":"тепловая энергия"},{"$f":"C88+C105-C121","v":0}]
["3.1.2",{"$f":"B9","v":"электроэнергия"},{"$f":"C89+C106-C122","v":0}]
["3.1.3","холодная вода",0]
["3.1.4","горячее водоснабжение",0]
["3.1.5","водоотведение (очистка сточных вод)",0]
["3.1.6","водоотведение",0]
["3.1.7","очистка сточных вод",0]
["3.1.8","техническая вода",0]
["3.1.9","очистка воды",0]
["3.1.10",0,0]
["3.1.11",0,0]
["3.1.12",0,0]
["3.1.13",0,0]
["3.1.14",0,0]
["3.1.15","прочие (нерегулируемые) виды деятельности",0]
["3.2.2","Текущий налог на прибыль",{"$f":"SUM(C153:C167)","v":0}]
["3.2.2.1",{"$f":"B24","v":"тепловая энергия"}]
["3.2.2.2",{"$f":"B25","v":"электроэнергия"}]
["3.2.2.3","холодная вода"]
["3.2.2.4","горячее водоснабжение"]
["3.2.2.5","водоотведение (очистка сточных вод)"]
["3.2.2.6","водоотведение"]
["3.2.2.7","очистка сточных вод"]
["3.2.2.8","техническая вода"]
["3.2.2.9","очистка воды"]
["3.2.2.10",0]
["3.2.2.11",0]
["3.2.2.12",0]
["3.2.2.13",0]
["3.2.2.14",0]
["3.2.2.15","прочие (нерегулируемые) виды деятельности"]
[]
[]
["5.","Чистая прибыль (убыток) отчетного периода",{"$f":"C136-C152+C168+C169","v":0}]

{"sheet":"показатели надежн и качества","index":9,"n_rows":22,"n_cols":19,"rows_kept":22,"cut":false,"hidden":false,"merged":[[13,13,13,15],[13,16,13,17],[13,18,13,19],[0,0,0,4],[0,12,0,19],[1,0,1,4],[6,12,7,12],[6,13,7,15],[6,16,7,17],[7,18,7,19],[9,12,9,19],[10,13,10,15],[10,16,10,17],[10,18,10,19],[16,0,16,4],[16,12,16,19],[20,0,20,4],[2,0,2,4],[6,3,6,6],[6,0,8,0],[6,1,8,1],[6,2,8,2],[7,5,7,6],[7,3,8,3],[7,4,8,4],[9,0,9,4],[17,13,17,15],[17,16,17,17],[17,18,17,19],[6,18,6,19]]}
["Фактические значения показателей надежности, качества и энергетической эффективности объектов централизованных систем водоснабжения",null,null,null,null,null,null,null,null,null,null,null,"V. Плановые значения показателей надежности, качества и энергетической эффективности объектов централизованных систем водоснабжения"]
[{"$f":"Титульный!C19","v":"горячее водоснабжение"}]
[{"$f":"Титульный!C21","v":0}]
["район",{"$f":"Титульный!C6","v":0}]
["МО",{"$f":"Титульный!C7","v":0}]
[]
["№ п/п","Наименование показателя","ед. изм.","2016 год",null,null,null,null,null,null,null,null,"№ п/п","Наименование показателя",null,null,"ед. изм.",null,{"$f":"#REF!","v":{"$error":"#REF!"}}]
[null,null,null,"план","факт","отклонение",null,null,null,null,null,null,null,null,null,null,null,null,"Значение"]
[null,null,null,null,null,"абс.","относ., %"]
["Показатели качества воды",null,null,null,null,null,null,null,null,null,null,null,"Показатели качества воды"]
[1,"Доля проб горячей воды в тепловой сети или в сети горячего водоснабжения, не соответствующих требованиям по температуре, в общем объеме проб, отобранных по результатам производственного контроля качества горячей воды","%",null,{"$f":"IF(E12=0,0,E13/E12*100)","v":0},{"$f":"E11-D11","v":0},{"$f":"IF(D11=0,,F11/D11)*100","v":0},"приложить отчеты о проведении исследований!",null,null,null,null,1,"Доля проб питьевой воды, подаваемой с водопроводных станций в распределительную водопроводную сеть, не соответствующих установленным требованиям, в общем объеме проб, отобранных по результатам производственного контроля качества питьевой воды",null,null,"%"]
["1.1.","количество проб горячей воды всего","ед",null,null,null,null,"если исследования не проводились поставить прочерк"]
["1.2.","количество проб проб горячей воды, не соответствующих требованиям по температуре","ед"]
[2,"Доля проб горячей воды в тепловой сети или в сети горячего водоснабжения, не соответствующих установленным требованиям (за исключением температуры), в общем объеме проб, отобранных по результатам производственного контроля качества горячей воды","%",null,{"$f":"IF(E15=0,0,E16/E15*100)","v":0},{"$f":"E14-D14","v":0},{"$f":"IF(D14=0,,F14/D14)*100","v":0},"приложить отчеты о проведении исследований!",null,null,null,null,2,"Доля проб питьевой воды в распределительной водопроводной сети, не соответствующих установленным требованиям, в общем объеме проб, отобранных по результатам производственного контроля качества питьевой воды",null,null,"%"]
["2..1.","количество проб питьевой воды всего","ед"]
["2.2.","количество проб горячей воды, не соответствующих установленным требованиям (за исключением температуры)","ед"]
["Показатели надежности и бесперебойности водоснабжения",null,null,null,null,null,null,null,null,null,null,null,"Показатели надежности и бесперебойности водоснабжения"]
[1,"Количество зафиксированных перерывов в подаче горячей воды, возникших в результате аварий, повреждений и иных технологических нарушений","ед в год/ км",null,{"$f":"IF(E20=0,0,E19/E20)","v":0},{"$f":"E18-D18","v":0},{"$f":"IF(D18=0,,F18/D18)*100","v":0},"приложить подтверждающие документы!",null,null,null,null,1,"Количество зафиксированных перерывов в подаче холодной воды, возникших в результате аварий, повреждений и иных технологических нарушений",null,null,"ед в год/ км"]
["1.1.","количество зафиксированных перерывов в подаче горячей воды","ед"]
["1.2.","протяженность водопроводных сетей","км",null,{"$f":"'[1]Техн характер системы'!D16+'[1]Техн характер системы (бсх)'!D16/1000","v":0}]
["Показатели энергетической эффективности использования ресурсов"]
[1,"Удельное количество тепловой энергии, расходуемое на подогрев горячей воды","Гкал/куб.м.","-",null,"-","-","при применении двухкомпонентного тарифа приложить подтверждающие документы!"]

{"sheet":"отчет ПП","index":10,"n_rows":42,"n_cols":8,"rows_kept":42,"cut":false,"hidden":false,"merged":[[14,1,14,4],[8,5,8,7],[9,2,9,3],[9,4,9,5],[8,0,8,1],[4,0,4,1],[4,2,4,7],[5,0,5,1],[5,2,5,7],[12,5,12,7],[12,1,13,4],[6,0,6,1],[6,2,6,7],[7,0,7,1],[7,2,7,7],[27,1,28,4],[29,1,29,4],[2,0,2,1],[2,2,2,7],[3,0,3,1],[27,5,27,7],[26,2,26,3],[26,4,26,5],[27,0,28,0],[25,0,25,7],[21,0,22,0],[18,2,18,3],[18,4,18,5],[11,2,11,3],[11,4,11,5],[12,0,13,0],[41,1,41,3],[39,1,39,3],[37,1,37,3],[36,1,36,3],[35,0,35,7],[38,0,38,7],[3,2,3,7],[1,0,1,1],[1,2,1,3],[1,4,1,5],[40,0,40,7],[15,1,15,4],[33,1,34,3],[33,0,34,0],[33,4,34,4],[33,5,33,7],[16,1,16,4],[17,1,17,4],[21,5,21,7],[21,1,22,4],[31,0,31,7],[23,1,23,4]]}
["I. Отчет о выполнении производственной программы за 2016 год"]
[]
["Полное наименование организации",null,{"$f":"Титульный!C10","v":" "}]
["Юридический адрес, телефон, факс",null,{"$f":"CONCATENATE('данные об организации'!C4,'данные об организации'!C5)","v":""}]
["ИНН",null,{"$f":"Титульный!C9","v":0}]
["Сфера деятельности",null,{"$f":"Титульный!C15","v":"Водоснабжение"}]
["Наименование уполномоченного органа",null,"Департамент тарифного регулирования Томской   области"]
["Юридический адрес, телефон, факс",null,"634041, г. Томск, пр. Кирова 41, тел./факс: (3822)   560-373"]
["Период реализации производственной программы (график реализации мероприятий производственной программы)",null,"с ",{"$f":"'данные об организации'!H16","v":"2017-01-01"},"по","2016-12-31"]
[]
["II. Выполнение плановых мероприятий"]
[]
["№ п/п","Вид плановых мероприятий",null,null,null,"Сумма за 2016 год, тыс.руб"]
[null,null,null,null,null,"план","факт","откл"]
[1,"Плановые мероприятия: по ремонту объектов водоснабжения и водопроводных сетей, направленные на улучшение качества горячей воды, обслуживания абонентов",null,null,null,0,0,0]
[2,"Плановые мероприятия по энергосбережению и повышению энергетической эффективности, в том числе по снижению потерь воды при транспортировке",null,null,null,0,0,0]
[3,"Другие мероприятия",null,null,null,0,0,0]
[null,"Итого",null,null,null,{"$f":"SUM(F15:F17)","v":0},{"$f":"SUM(G15:G17)","v":0},{"$f":"G18-F18","v":0}]
[]
["III. Объем подачи воды"]
[]
["№ п/п","Наименование показателя",null,null,null,"Объем за 2016 год, тыс. куб.м."]
[null,null,null,null,null,"план","факт","откл"]
[1,"Объем реализации",null,null,null,null,{"$f":"'полезный отпуск'!B29/1000","v":0},{"$f":"G24-F24","v":0}]
[]
["IV. Объем финансовых потребностей, необходимых для реализации производственной программы"]
[]
["№ п/п","Наименование показателя",null,null,null,"Сумма за 2016 год, тыс.руб"]
[null,null,null,null,null,"план","факт","откл"]
[1,"Необходимая валовая выручка",null,null,null,null,{"$f":"'Смета факт'!D15/1000","v":0},{"$f":"G30-F30","v":0}]
[]
["V. Выполнение плановые значения показателей надежности, качества и энергетической эффективности объектов централизованных систем водоснабжения"]
[]
["№ п/п","Наименование показателя",null,null,"ед. изм.","Значение за 2016 год"]
[null,null,null,null,null,"план","факт","откл"]
["Показатели качества воды"]
[1,"Доля проб горячей воды в тепловой сети или в сети горячего водоснабжения, не соответствующих требованиям по температуре, в общем объеме проб, отобранных по результатам производственного контроля качества горячей воды",null,null,"%",{"$f":"'показатели надежн и качества'!D11","v":0},{"$f":"'показатели надежн и качества'!E11","v":0},{"$f":"G37-F37","v":0}]
[2,"Доля проб горячей воды в тепловой сети или в сети горячего водоснабжения, не соответствующих установленным требованиям (за исключением температуры), в общем объеме проб, отобранных по результатам производственного контроля качества горячей воды",null,null,"%",{"$f":"'показатели надежн и качества'!D14","v":0},{"$f":"'показатели надежн и качества'!E14","v":0},{"$f":"G38-F38","v":0}]
["Показатели надежности и бесперебойности водоснабжения"]
[1,"Количество зафиксированных перерывов в подаче горячей воды, возникших в результате аварий, повреждений и иных технологических нарушений",null,null,"ед в год/ км",{"$f":"'показатели надежн и качества'!D18","v":0},{"$f":"'показатели надежн и качества'!E18","v":0},{"$f":"G40-F40","v":0}]
["Показатели энергетической эффективности использования ресурсов"]
[1,"Удельное количество тепловой энергии, расходуемое на подогрев горячей воды",null,null,"Гкал/куб.м.","-",{"$f":"'показатели надежн и качества'!E22","v":0},"-"]

{"sheet":"расчет выпадающих","index":11,"n_rows":25,"n_cols":10,"rows_kept":25,"cut":false,"hidden":true,"merged":[[11,5,12,7],[11,8,12,9],[0,0,0,9],[2,0,4,0],[2,1,4,1],[2,2,3,4],[2,5,3,7],[2,8,3,9],[9,0,9,9],[11,0,13,0],[11,1,13,1],[11,2,12,4]]}
["Расчет выпадающих по полезному отпуску"]
[]
["№ п/п","Наименование показателя","План",null,null,"Факт по данным организации",null,null,"Отклонение"]
[]
[null,null,"01.01.-30.06.","01.07.-31.12.","2017 год","01.01.-30.06.","01.07.-31.12.","2017 год","абсолютное","в %"]
[1,"Полезный отпуск, куб.м",{"$f":"'Смета факт'!C18*0.5","v":0},{"$f":"C6","v":0},{"$f":"C6+D6","v":0},{"$f":"'полезный отпуск'!B30","v":0},{"$f":"'полезный отпуск'!B31","v":0},{"$f":"F6+G6","v":0},{"$f":"H6-E6","v":0},{"$f":"IF(E6=0,0,H6/E6*100)","v":0}]
[2,"Тариф, руб/куб.м.",{"$f":"'полезный отпуск'!D7","v":0},{"$f":"'полезный отпуск'!E7","v":0},null,{"$f":"'данные об организации'!I16","v":0},{"$f":"'данные об организации'!I18","v":0}]
[3,"Выручка, руб.",{"$f":"C6*C7","v":0},{"$f":"D6*D7","v":0},{"$f":"C8+D8","v":0},{"$f":"F6*F7","v":0},{"$f":"G6*G7","v":0},{"$f":"F8+G8","v":0},{"$f":"H8-E8","v":0},{"$f":"IF(E8=0,0,H8/E8*100)","v":0}]
[]
["Расчет выпадающих по полезному отпуску"]
[]
["№ п/п","Наименование показателя","План",null,null,"Факт по данным эксперта",null,null,"Отклонение"]
[]
[null,null,"01.01.-30.06.","01.07.-31.12.","2017 год","01.01.-30.06.","01.07.-31.12.","2017 год","абсолютное","в %"]
[1,"Полезный отпуск, куб.м",{"$f":"C6","v":0},{"$f":"D6","v":0},{"$f":"C15+D15","v":0},{"$f":"IF(H6=0,,F6/H6*#REF!)","v":0},{"$f":"H15-F15","v":0},{"$f":"'Смета факт'!E18","v":0},{"$f":"H15-E15","v":0},{"$f":"IF(E15=0,0,H15/E15*100)","v":0}]
[2,"Тариф, руб/куб.м.",{"$f":"C7","v":0},{"$f":"D7","v":0},null,{"$f":"F7","v":0},{"$f":"G7","v":0}]
[3,"Выручка, руб.",{"$f":"C15*C16","v":0},{"$f":"D15*D16","v":0},{"$f":"C17+D17","v":0},{"$f":"F15*F16","v":0},{"$f":"G15*G16","v":0},{"$f":"F17+G17","v":0},{"$f":"H17-E17","v":0},{"$f":"IF(E17=0,0,H17/E17*100)","v":0}]
[]
[]
[]
[null,"Корректировка НВВ по результатам 2016 года (МЭОР)"]
[]
[null,"ПО",{"$f":"-'расчет выпадающих'!I17","v":0}]
[null,"Смета расходов",{"$f":"'Смета факт'!H15","v":0}]
[null,"ВСЕГО",{"$f":"C23+C24","v":0}]

{"sheet":"ЭЗ","index":12,"n_rows":80,"n_cols":10,"rows_kept":80,"cut":false,"hidden":true,"merged":[[13,0,14,1],[13,2,13,4],[13,5,14,5],[0,0,0,9],[2,0,4,0],[2,1,4,1],[2,2,3,4],[2,5,3,7],[2,8,3,9]]}
["Расчет выпадающих по полезному отпуску"]
[]
["№ п/п","Наименование показателя","План",null,null,"Факт по данным эксперта",null,null,"Отклонение"]
[]
[null,null,"01.01.-30.06.","01.07.-31.12.","2016 год","01.01.-30.06.","01.07.-31.12.","2016 год","абсолютное","в %"]
[1,"Полезный отпуск, тыс.куб.м",{"$f":"'расчет выпадающих'!C15/1000","v":0},{"$f":"'расчет выпадающих'!D15/1000","v":0},{"$f":"C6+D6","v":0},{"$f":"'расчет выпадающих'!F15/1000","v":0},{"$f":"'расчет выпадающих'!G15/1000","v":0},{"$f":"F6+G6","v":0},{"$f":"H6-E6","v":0},{"$f":"IF(E6=0,0,H6/E6*100)","v":0}]
[2,"Тариф, руб/куб.м.",{"$f":"'расчет выпадающих'!C16","v":0},{"$f":"'расчет выпадающих'!D16","v":0},null,{"$f":"'расчет выпадающих'!F16","v":0},{"$f":"'расчет выпадающих'!G16","v":0}]
[3,"Выручка, тыс.руб.",{"$f":"C6*C7","v":0},{"$f":"D6*D7","v":0},{"$f":"C8+D8","v":0},{"$f":"F6*F7","v":0},{"$f":"G6*G7","v":0},{"$f":"F8+G8","v":0},{"$f":"H8-E8","v":0},{"$f":"IF(E8=0,0,H8/E8*100)","v":0}]
[]
[]
[]
[]
[null,null,null,null,null,"тыс.рублей"]
["Наименование показателя",null,"2016 год",null,null,"отклонение (\"-\" - экономия, \"+\" - перерасход)            гр. 6=(гр. 5-гр.3)"]
[null,null,"план   ДТР ТО по установленным тарифам","факт по данным организации","Факт, принятый экспертом"]
[1,"Производственные расходы",{"$f":"C17+C20+C25+C29+C34","v":{"$error":"#REF!"}},{"$f":"D17+D20+D25+D29+D34","v":{"$error":"#REF!"}},{"$error":"#REF!"},{"$f":"E16-C16","v":{"$error":"#REF!"}}]
["1.1.","Расходы на приобретение сырья и материалов и их хранение",{"$f":"C18+C19","v":{"$error":"#REF!"}},{"$f":"D18+D19","v":{"$error":"#REF!"}},{"$error":"#REF!"},{"$f":"E17-C17","v":{"$error":"#REF!"}}]
["1.1.1.","Реагенты",{"$f":"#REF!/1000","v":{"$error":"#REF!"}},{"$f":"#REF!/1000","v":{"$error":"#REF!"}},{"$f":"#REF!/1000","v":{"$error":"#REF!"}},{"$error":"#REF!"}]
["1.1.2.","Материалы и малоценные основные средства",{"$f":"#REF!/1000-C18","v":{"$error":"#REF!"}},{"$f":"#REF!/1000-D18","v":{"$error":"#REF!"}},{"$f":"#REF!/1000-E18","v":{"$error":"#REF!"}},{"$error":"#REF!"}]
["1.2.","Расходы на энергетические ресурсы и холодную воду",{"$f":"C21+C22+C23+C24","v":{"$error":"#REF!"}},{"$f":"D21+D22+D23+D24","v":{"$error":"#REF!"}},{"$error":"#REF!"},{"$error":"#REF!"}]
["1.2.1.","электроэнергия",{"$f":"#REF!/1000","v":{"$error":"#REF!"}},{"$f":"#REF!/1000","v":{"$error":"#REF!"}},{"$f":"#REF!/1000","v":{"$error":"#REF!"}},{"$error":"#REF!"}]
["1.2.2.","теплоэнергия",{"$f":"#REF!/1000","v":{"$error":"#REF!"}},{"$f":"#REF!/1000","v":{"$error":"#REF!"}},{"$f":"#REF!/1000","v":{"$error":"#REF!"}},{"$error":"#REF!"}]
["1.2.3.","вода",{"$f":"#REF!/1000","v":{"$error":"#REF!"}},{"$f":"#REF!/1000","v":{"$error":"#REF!"}},{"$f":"#REF!/1000","v":{"$error":"#REF!"}},{"$error":"#REF!"}]
["1.2.4.","прочие энергетические ресурсы на хозбытовые нужды",{"$f":"#REF!/1000-C23-C22-C21","v":{"$error":"#REF!"}},{"$f":"#REF!/1000-D23-D22-D21","v":{"$error":"#REF!"}},{"$f":"#REF!/1000-E23-E22-E21","v":{"$error":"#REF!"}},{"$error":"#REF!"}]
["1.3.","Услуги, оказываемые сторонними организациями",{"$f":"C26+C27+C28","v":{"$error":"#REF!"}},{"$f":"D26+D27+D28","v":{"$error":"#REF!"}},{"$error":"#REF!"},{"$error":"#REF!"}]
["1.3.1.","услуги по подъему воды",{"$f":"#REF!/1000","v":{"$error":"#REF!"}},{"$f":"#REF!/1000","v":{"$error":"#REF!"}},{"$f":"#REF!/1000","v":{"$error":"#REF!"}},{"$error":"#REF!"}]
["1.3.2.","услуги по очистке воды",{"$f":"#REF!/1000","v":{"$error":"#REF!"}},{"$f":"#REF!/1000","v":{"$error":"#REF!"}},{"$f":"#REF!/1000","v":{"$error":"#REF!"}},{"$error":"#REF!"}]
["1.3.3.","услуги  по транспортированию воды",{"$f":"#REF!/1000","v":{"$error":"#REF!"}},{"$f":"#REF!/1000","v":{"$error":"#REF!"}},{"$f":"#REF!/1000","v":{"$error":"#REF!"}},{"$error":"#REF!"}]
["1.4.","Расходы на оплату труда и отчисления на социальные нужды основного производственного персонала, в том числе налоги и сборы:",{"$f":"C30+C33","v":{"$error":"#REF!"}},{"$f":"D30+D33","v":{"$error":"#REF!"}},{"$error":"#REF!"},{"$error":"#REF!"}]
["1.4.1.","Расходы на оплату труда производственного персонала",{"$f":"#REF!/1000","v":{"$error":"#REF!"}},{"$f":"#REF!/1000","v":{"$error":"#REF!"}},{"$f":"#REF!/1000","v":{"$error":"#REF!"}},{"$error":"#REF!"}]
["1.4.1.1","численность ППП, чел",{"$f":"#REF!","v":{"$error":"#REF!"}},{"$f":"#REF!","v":{"$error":"#REF!"}},{"$f":"#REF!","v":{"$error":"#REF!"}}]
[null,"средняя заработная плата, руб/чел",{"$f":"IF(C31=0,,C30/12/C31*1000)","v":{"$error":"#REF!"}},{"$f":"IF(D31=0,,D30/12/D31*1000)","v":{"$error":"#REF!"}},{"$error":"#REF!"}]
["1.4.2.","Отчисления на социальные нужды производственного персонала, в том числе налоги и сборы",{"$f":"#REF!/1000","v":{"$error":"#REF!"}},{"$f":"#REF!/1000","v":{"$error":"#REF!"}},{"$f":"#REF!/1000","v":{"$error":"#REF!"}},{"$error":"#REF!"}]
["1.5.","Прочие производственные расходы",{"$f":"SUM(C35:C40)","v":{"$error":"#REF!"}},{"$f":"SUM(D35:D40)","v":{"$error":"#REF!"}},{"$error":"#REF!"},{"$error":"#REF!"}]
["1.5.1.","Услуги вспомогательных производств",{"$f":"#REF!/1000","v":{"$error":"#REF!"}},{"$f":"#REF!/1000","v":{"$error":"#REF!"}},{"$f":"#REF!/1000","v":{"$error":"#REF!"}},{"$error":"#REF!"}]
["1.5.2.","Расходы на эксплуатацию, техническое обслуживание и ремонт автотранспорта",{"$f":"#REF!/1000","v":{"$error":"#REF!"}},{"$f":"#REF!/1000","v":{"$error":"#REF!"}},{"$f":"#REF!/1000","v":{"$error":"#REF!"}},{"$error":"#REF!"}]
["1.5.3.","Цеховые расходы",{"$f":"#REF!/1000","v":{"$error":"#REF!"}},{"$f":"#REF!/1000","v":{"$error":"#REF!"}},{"$f":"#REF!/1000","v":{"$error":"#REF!"}},{"$error":"#REF!"}]
["1.5.4.","Общепроизводственные расходы",{"$f":"#REF!/1000","v":{"$error":"#REF!"}},{"$f":"#REF!/1000","v":{"$error":"#REF!"}},{"$f":"#REF!/1000","v":{"$error":"#REF!"}},{"$error":"#REF!"}]
["1.5.5.","Контроль качества воды и сточных вод",{"$f":"#REF!/1000","v":{"$error":"#REF!"}},{"$f":"#REF!/1000","v":{"$error":"#REF!"}},{"$f":"#REF!/1000","v":{"$error":"#REF!"}},{"$error":"#REF!"}]
["1.5.6.","Прочие расходы",{"$f":"SUM(C41:C44)","v":{"$error":"#REF!"}},{"$f":"SUM(D41:D44)","v":{"$error":"#REF!"}},{"$error":"#REF!"},{"$error":"#REF!"}]
["1.5.3.2.","расходы на охрану труда",{"$f":"#REF!/1000","v":{"$error":"#REF!"}},{"$f":"#REF!/1000","v":{"$error":"#REF!"}},{"$f":"#REF!/1000","v":{"$error":"#REF!"}},{"$error":"#REF!"}]
["1.5.3.3.","расходы на льготный проезд",{"$f":"#REF!/1000","v":{"$error":"#REF!"}},{"$f":"#REF!/1000","v":{"$error":"#REF!"}},{"$f":"#REF!/1000","v":{"$error":"#REF!"}},{"$error":"#REF!"}]
["1.5.3.4.","расходы на содержание зданий",{"$f":"#REF!/1000","v":{"$error":"#REF!"}},{"$f":"#REF!/1000","v":{"$error":"#REF!"}},{"$f":"#REF!/1000","v":{"$error":"#REF!"}},{"$error":"#REF!"}]
["1.5.3.5.","прочие цеховые расходы",{"$f":"#REF!/1000","v":{"$error":"#REF!"}},{"$f":"#REF!/1000","v":{"$error":"#REF!"}},{"$f":"#REF!/1000","v":{"$error":"#REF!"}}]
[2,"Ремонтные расходы",{"$f":"C46+C47","v":{"$error":"#REF!"}},{"$f":"D46+D47","v":{"$error":"#REF!"}},{"$error":"#REF!"},{"$error":"#REF!"}]
["2.1.","Расходы на текущий ремонт централизованных систем водоснабжения и (или) водоотведения либо объектов, входящих в состав таких систем",{"$f":"#REF!/1000","v":{"$error":"#REF!"}},{"$f":"#REF!/1000","v":{"$error":"#REF!"}},{"$f":"#REF!/1000","v":{"$error":"#REF!"}},{"$error":"#REF!"}]
["2.2.","Расходы на капитальный ремонт централизованных систем водоснабжения и (или) водоотведения либо объектов, входящих в состав таких систем",{"$f":"#REF!/1000","v":{"$error":"#REF!"}},{"$f":"#REF!/1000","v":{"$error":"#REF!"}},{"$f":"#REF!/1000","v":{"$error":"#REF!"}},{"$error":"#REF!"}]
[3,"Расходы на обслуживание и ремонт бесхозяйных сетей",{"$f":"#REF!/1000","v":{"$error":"#REF!"}},{"$f":"#REF!/1000","v":{"$error":"#REF!"}},{"$f":"#REF!/1000","v":{"$error":"#REF!"}},{"$error":"#REF!"}]
[4,"Административные расходы",{"$f":"C50+C53+C54","v":{"$error":"#REF!"}},{"$f":"D50+D53+D54","v":{"$error":"#REF!"}},{"$error":"#REF!"},{"$error":"#REF!"}]
["4.1.","Расходы на оплату труда административно-управленческого персонала",{"$f":"#REF!/1000","v":{"$error":"#REF!"}},{"$f":"#REF!/1000","v":{"$error":"#REF!"}},{"$f":"#REF!/1000","v":{"$error":"#REF!"}},{"$error":"#REF!"}]
["4.1.1.","численность персонала, относимого на данный вид деятельности, чел",{"$f":"#REF!","v":{"$error":"#REF!"}},{"$f":"#REF!","v":{"$error":"#REF!"}},{"$f":"#REF!","v":{"$error":"#REF!"}}]
["4.1.2.","средняя заработная плата, руб/чел",{"$f":"IF(C51=0,,C50/12/C51*1000)","v":{"$error":"#REF!"}},{"$f":"IF(D51=0,,D50/12/D51*1000)","v":{"$error":"#REF!"}},{"$error":"#REF!"}]
["4.2.","Отчисления на социальные нужды административно-управленческого персонала, в том числе налоги и сборы",{"$f":"#REF!/1000","v":{"$error":"#REF!"}},{"$f":"#REF!/1000","v":{"$error":"#REF!"}},{"$f":"#REF!/1000","v":{"$error":"#REF!"}},{"$error":"#REF!"}]
["4.3.","Прочие административные расходы",{"$f":"#REF!/1000","v":{"$error":"#REF!"}},{"$f":"#REF!/1000","v":{"$error":"#REF!"}},{"$f":"#REF!/1000","v":{"$error":"#REF!"}},{"$error":"#REF!"}]
[5,"Сбытовые расходы гарантирующих организаций",{"$f":"#REF!/1000","v":{"$error":"#REF!"}},{"$f":"#REF!/1000","v":{"$error":"#REF!"}},{"$f":"#REF!/1000","v":{"$error":"#REF!"}},{"$error":"#REF!"}]
["5.1.","Расходы ГО по сомнительным долгам, в размере не более 2% НВВ",{"$f":"#REF!/1000","v":{"$error":"#REF!"}},{"$f":"#REF!/1000","v":{"$error":"#REF!"}},{"$f":"#REF!/1000","v":{"$error":"#REF!"}},{"$error":"#REF!"}]
[6,"Амортизация",{"$f":"#REF!/1000","v":{"$error":"#REF!"}},{"$f":"#REF!/1000","v":{"$error":"#REF!"}},{"$f":"#REF!/1000","v":{"$error":"#REF!"}},{"$error":"#REF!"}]
[7,"Расходы на арендную плату, лизинговые платежи, концессионную плату",{"$f":"C59+C60+C61+C62","v":{"$error":"#REF!"}},{"$f":"D59+D60+D61+D62","v":{"$error":"#REF!"}},{"$error":"#REF!"},{"$error":"#REF!"}]
["7.1.","Аренда имущества",{"$f":"#REF!/1000","v":{"$error":"#REF!"}},{"$f":"#REF!/1000","v":{"$error":"#REF!"}},{"$f":"#REF!/1000","v":{"$error":"#REF!"}},{"$error":"#REF!"}]
["7.2.","Концессионная плата",{"$f":"#REF!/1000","v":{"$error":"#REF!"}},{"$f":"#REF!/1000","v":{"$error":"#REF!"}},{"$f":"#REF!/1000","v":{"$error":"#REF!"}},{"$error":"#REF!"}]
["7.3.","Лизинговые платежи",{"$f":"#REF!/1000","v":{"$error":"#REF!"}},{"$f":"#REF!/1000","v":{"$error":"#REF!"}},{"$f":"#REF!/1000","v":{"$error":"#REF!"}},{"$error":"#REF!"}]
["7.4.","Аренда земельных участков",{"$f":"#REF!/1000","v":{"$error":"#REF!"}},{"$f":"#REF!/1000","v":{"$error":"#REF!"}},{"$f":"#REF!/1000","v":{"$error":"#REF!"}},{"$error":"#REF!"}]
[8,"Расходы, связанные с уплатой налогов и сборов",{"$f":"SUM(C64:C69)","v":{"$error":"#REF!"}},{"$f":"SUM(D64:D69)","v":{"$error":"#REF!"}},{"$error":"#REF!"},{"$error":"#REF!"}]
["8.1.","водный налог",{"$f":"#REF!/1000","v":{"$error":"#REF!"}},{"$f":"#REF!/1000","v":{"$error":"#REF!"}},{"$f":"#REF!/1000","v":{"$error":"#REF!"}},{"$error":"#REF!"}]
["8.2.","налог на землю",{"$f":"#REF!/1000","v":{"$error":"#REF!"}},{"$f":"#REF!/1000","v":{"$error":"#REF!"}},{"$f":"#REF!/1000","v":{"$error":"#REF!"}},{"$error":"#REF!"}]
["8.3.","налог на имущество",{"$f":"#REF!/1000","v":{"$error":"#REF!"}},{"$f":"#REF!/1000","v":{"$error":"#REF!"}},{"$f":"#REF!/1000","v":{"$error":"#REF!"}},{"$error":"#REF!"}]
["8.4.","плата за загрязнение окружающей среды",{"$f":"#REF!/1000","v":{"$error":"#REF!"}},{"$f":"#REF!/1000","v":{"$error":"#REF!"}},{"$f":"#REF!/1000","v":{"$error":"#REF!"}},{"$error":"#REF!"}]
["8.5.","транспортный налог",{"$f":"#REF!/1000","v":{"$error":"#REF!"}},{"$f":"#REF!/1000","v":{"$error":"#REF!"}},{"$f":"#REF!/1000","v":{"$error":"#REF!"}},{"$error":"#REF!"}]
["8.6.","прочие налоги и сборы",{"$f":"#REF!/1000","v":{"$error":"#REF!"}},{"$f":"#REF!/1000","v":{"$error":"#REF!"}},{"$f":"#REF!/1000","v":{"$error":"#REF!"}},{"$error":"#REF!"}]
[9,"ИТОГО СЕБЕСТОИМОСТЬ (сумма стр 1+стр 2+…+ стр 8)",{"$f":"SUM(C16,C45,C48,C49,C55,C57:C58,C63)","v":{"$error":"#REF!"}},{"$f":"SUM(D16,D45,D48,D49,D55,D57:D58,D63)","v":{"$error":"#REF!"}},{"$error":"#REF!"}]
[10,"Нормативная прибыль",{"$f":"C73+C74+C75+C76","v":{"$error":"#REF!"}},{"$f":"D73+D74+D75+D76","v":{"$error":"#REF!"}},{"$error":"#REF!"},{"$error":"#REF!"}]
[null,"в том числе в %",{"$f":"(C71-C77-C78)/C70","v":{"$error":"#REF!"}},{"$f":"(D71-D77-D78)/D70","v":{"$error":"#REF!"}},{"$error":"#REF!"},{"$error":"#REF!"}]
["9.1.","средства на возврат займов и кредитов и процентов по ним",{"$f":"#REF!/1000","v":{"$error":"#REF!"}},{"$f":"#REF!/1000","v":{"$error":"#REF!"}},{"$f":"#REF!/1000","v":{"$error":"#REF!"}},{"$error":"#REF!"}]
["9.2.","расходы на капитальные вложения (инвестиции)",{"$f":"#REF!/1000","v":{"$error":"#REF!"}},{"$f":"#REF!/1000","v":{"$error":"#REF!"}},{"$f":"#REF!/1000","v":{"$error":"#REF!"}},{"$error":"#REF!"}]
["9.3.","денежные выплаты социального характера (по коллективному договору)",{"$f":"#REF!/1000","v":{"$error":"#REF!"}},{"$f":"#REF!/1000","v":{"$error":"#REF!"}},{"$f":"#REF!/1000","v":{"$error":"#REF!"}},{"$error":"#REF!"}]
["9.4.","прибыль, обеспечивающая финансирование других расходов, не учитываемых  при определении налоговой бызы налога на прибыль (остающаяся в распоряжении организации)",{"$f":"#REF!/1000","v":{"$error":"#REF!"}},{"$f":"#REF!/1000","v":{"$error":"#REF!"}},{"$f":"#REF!/1000","v":{"$error":"#REF!"}},{"$error":"#REF!"}]
[11,"Налог на прибыль",{"$f":"#REF!/1000","v":{"$error":"#REF!"}},{"$f":"#REF!/1000","v":{"$error":"#REF!"}},{"$f":"#REF!/1000","v":{"$error":"#REF!"}},{"$error":"#REF!"}]
[null,"(или)единый налог при УСН ",{"$f":"#REF!/1000","v":{"$error":"#REF!"}},{"$f":"#REF!/1000","v":{"$error":"#REF!"}},{"$f":"#REF!/1000","v":{"$error":"#REF!"}},{"$error":"#REF!"}]
[12,"ВСЕГО (стр 9+стр 10+стр11)",{"$f":"C70+C71+C77+C78","v":{"$error":"#REF!"}},{"$f":"D70+D71+D77+D78","v":{"$error":"#REF!"}},{"$error":"#REF!"},{"$error":"#REF!"}]
[null,null,{"$f":"C79*1000-#REF!","v":{"$error":"#REF!"}},{"$f":"D79*1000-#REF!","v":{"$error":"#REF!"}},{"$f":"E79*1000-#REF!","v":{"$error":"#REF!"}}]